{"text_format":"1","workbook":"xlsx","n_sheets":2,"sheets":["BHS","Master Data"],"not_rendered":{"charts":0,"images":0,"macros":1,"external_links":0,"defined_names":11,"comments":1,"pivot_tables":0},"unopened":[],"bounds":{"document_bytes":16777216,"sheet_cells":100000,"rows_first":2000,"rows_last":500,"rows_between":2000,"halvings":0,"cell_chars":16384,"cell_head_chars":4096},"cells_cut":0,"cells_raw":0,"read":"whole","date_system":"1900"}

{"sheet":"BHS","index":0,"n_rows":104,"n_cols":15,"rows_kept":104,"cut":false,"hidden":false,"merged":[[1,0,1,14],[0,0,0,14]]}
["Data Peserta Asuransi Kesehatan - SmartCare Executive "]
["PT. ABC"]
[]
["No","Nama Peserta\n(Max. 25 Karakter)","Jenis Kelamin\n(F/M)","Status Peserta\n(E / S / C)","Tanggal Lahir\n(ex: 6-Oct-19)","Kelas Manfaat","Rawat Inap","Rawat Jalan","Gigi","Persalinan","Optic Plan","Nomor Rekening","Nama Bank","Nama Pemegang Rekening","Political Exposed Persons (PEP)"]
[1,"KELUARGA 1 - PESERTA 1","F","E","1980-06-06","028-IP750-OP150-M16000",{"$f":"IF(ISNA(VLOOKUP($F5,'Master Data'!$G$2:$L$41,2,FALSE)),\"\",VLOOKUP($F5,'Master Data'!$G$2:$L$41,2,FALSE))","v":"IP750"},{"$f":"IF(ISNA(VLOOKUP($F5,'Master Data'!$G$2:$L$41,3,FALSE)),\"\",VLOOKUP($F5,'Master Data'!$G$2:$L$41,3,FALSE))","v":"OP150"},{"$f":"IF(ISNA(VLOOKUP($F5,'Master Data'!$G$2:$L$41,4,FALSE)),\"\",VLOOKUP($F5,'Master Data'!$G$2:$L$41,4,FALSE))","v":"-"},{"$f":"IF(ISNA(VLOOKUP($F5,'Master Data'!$G$2:$L$41,5,FALSE)),\"\",VLOOKUP($F5,'Master Data'!$G$2:$L$41,5,FALSE))","v":"M16000"},{"$f":"IF(ISNA(VLOOKUP($F5,'Master Data'!$G$2:$L$41,6,FALSE)),\"\",VLOOKUP($F5,'Master Data'!$G$2:$L$41,6,FALSE))","v":"-"},"0700222987012","BANK MANDIRI","KELUARGA 1 - PESERTA 1"]
[2,"KELUARGA 2 - PESERTA 1","F","E","1980-06-07","033-IP750-D6000-M16000",{"$f":"IF(ISNA(VLOOKUP($F6,'Master Data'!$G$2:$L$41,2,FALSE)),\"\",VLOOKUP($F6,'Master Data'!$G$2:$L$41,2,FALSE))","v":"IP750"},{"$f":"IF(ISNA(VLOOKUP($F6,'Master Data'!$G$2:$L$41,3,FALSE)),\"\",VLOOKUP($F6,'Master Data'!$G$2:$L$41,3,FALSE))","v":"-"},{"$f":"IF(ISNA(VLOOKUP($F6,'Master Data'!$G$2:$L$41,4,FALSE)),\"\",VLOOKUP($F6,'Master Data'!$G$2:$L$41,4,FALSE))","v":"D6000"},{"$f":"IF(ISNA(VLOOKUP($F6,'Master Data'!$G$2:$L$41,5,FALSE)),\"\",VLOOKUP($F6,'Master Data'!$G$2:$L$41,5,FALSE))","v":"M16000"},{"$f":"IF(ISNA(VLOOKUP($F6,'Master Data'!$G$2:$L$41,6,FALSE)),\"\",VLOOKUP($F6,'Master Data'!$G$2:$L$41,6,FALSE))","v":"-"},"0600888555647","BANK MANDIRI","KELUARGA 2 - PESERTA 1"]
[3,"KELUARGA 3 - PESERTA 1","M","E","1980-06-08","004-IP1000",{"$f":"IF(ISNA(VLOOKUP($F7,'Master Data'!$G$2:$L$41,2,FALSE)),\"\",VLOOKUP($F7,'Master Data'!$G$2:$L$41,2,FALSE))","v":"IP1000"},{"$f":"IF(ISNA(VLOOKUP($F7,'Master Data'!$G$2:$L$41,3,FALSE)),\"\",VLOOKUP($F7,'Master Data'!$G$2:$L$41,3,FALSE))","v":"-"},{"$f":"IF(ISNA(VLOOKUP($F7,'Master Data'!$G$2:$L$41,4,FALSE)),\"\",VLOOKUP($F7,'Master Data'!$G$2:$L$41,4,FALSE))","v":"-"},{"$f":"IF(ISNA(VLOOKUP($F7,'Master Data'!$G$2:$L$41,5,FALSE)),\"\",VLOOKUP($F7,'Master Data'!$G$2:$L$41,5,FALSE))","v":"-"},{"$f":"IF(ISNA(VLOOKUP($F7,'Master Data'!$G$2:$L$41,6,FALSE)),\"\",VLOOKUP($F7,'Master Data'!$G$2:$L$41,6,FALSE))","v":"-"},"0700765888112","BANK CENTRAL ASIA","KELUARGA 3 - PESERTA 1"]
[4,"KELUARGA 3 - PESERTA 2","F","S","1980-06-09","023-IP750-M16000",{"$f":"IF(ISNA(VLOOKUP($F8,'Master Data'!$G$2:$L$41,2,FALSE)),\"\",VLOOKUP($F8,'Master Data'!$G$2:$L$41,2,FALSE))","v":"IP750"},{"$f":"IF(ISNA(VLOOKUP($F8,'Master Data'!$G$2:$L$41,3,FALSE)),\"\",VLOOKUP($F8,'Master Data'!$G$2:$L$41,3,FALSE))","v":"-"},{"$f":"IF(ISNA(VLOOKUP($F8,'Master Data'!$G$2:$L$41,4,FALSE)),\"\",VLOOKUP($F8,'Master Data'!$G$2:$L$41,4,FALSE))","v":"-"},{"$f":"IF(ISNA(VLOOKUP($F8,'Master Data'!$G$2:$L$41,5,FALSE)),\"\",VLOOKUP($F8,'Master Data'!$G$2:$L$41,5,FALSE))","v":"M16000"},{"$f":"IF(ISNA(VLOOKUP($F8,'Master Data'!$G$2:$L$41,6,FALSE)),\"\",VLOOKUP($F8,'Master Data'!$G$2:$L$41,6,FALSE))","v":"-"},"0700765888112","BANK CENTRAL ASIA","KELUARGA 3 - PESERTA 1"]
[5,"KELUARGA 3 - PESERTA 3","M","C","1999-06-10","003-IP750",{"$f":"IF(ISNA(VLOOKUP($F9,'Master Data'!$G$2:$L$41,2,FALSE)),\"\",VLOOKUP($F9,'Master Data'!$G$2:$L$41,2,FALSE))","v":"IP750"},{"$f":"IF(ISNA(VLOOKUP($F9,'Master Data'!$G$2:$L$41,3,FALSE)),\"\",VLOOKUP($F9,'Master Data'!$G$2:$L$41,3,FALSE))","v":"-"},{"$f":"IF(ISNA(VLOOKUP($F9,'Master Data'!$G$2:$L$41,4,FALSE)),\"\",VLOOKUP($F9,'Master Data'!$G$2:$L$41,4,FALSE))","v":"-"},{"$f":"IF(ISNA(VLOOKUP($F9,'Master Data'!$G$2:$L$41,5,FALSE)),\"\",VLOOKUP($F9,'Master Data'!$G$2:$L$41,5,FALSE))","v":"-"},{"$f":"IF(ISNA(VLOOKUP($F9,'Master Data'!$G$2:$L$41,6,FALSE)),\"\",VLOOKUP($F9,'Master Data'!$G$2:$L$41,6,FALSE))","v":"-"},"0700765888112","BANK CENTRAL ASIA","KELUARGA 3 - PESERTA 1"]
[6,"KELUARGA 4 - PESERTA 1","F","E","2000-06-11","038-IP750-OP150-D6000-M16000",{"$f":"IF(ISNA(VLOOKUP($F10,'Master Data'!$G$2:$L$41,2,FALSE)),\"\",VLOOKUP($F10,'Master Data'!$G$2:$L$41,2,FALSE))","v":"IP750"},{"$f":"IF(ISNA(VLOOKUP($F10,'Master Data'!$G$2:$L$41,3,FALSE)),\"\",VLOOKUP($F10,'Master Data'!$G$2:$L$41,3,FALSE))","v":"OP150"},{"$f":"IF(ISNA(VLOOKUP($F10,'Master Data'!$G$2:$L$41,4,FALSE)),\"\",VLOOKUP($F10,'Master Data'!$G$2:$L$41,4,FALSE))","v":"D6000"},{"$f":"IF(ISNA(VLOOKUP($F10,'Master Data'!$G$2:$L$41,5,FALSE)),\"\",VLOOKUP($F10,'Master Data'!$G$2:$L$41,5,FALSE))","v":"M16000"},{"$f":"IF(ISNA(VLOOKUP($F10,'Master Data'!$G$2:$L$41,6,FALSE)),\"\",VLOOKUP($F10,'Master Data'!$G$2:$L$41,6,FALSE))","v":"-"},"0700222987012","BANK MANDIRI","KELUARGA 1 - PESERTA 2"]
[7,"KELUARGA 4 - PESERTA 2","F","E","1985-06-12","026-IP400-OP100-M12000",{"$f":"IF(ISNA(VLOOKUP($F11,'Master Data'!$G$2:$L$41,2,FALSE)),\"\",VLOOKUP($F11,'Master Data'!$G$2:$L$41,2,FALSE))","v":"IP400"},{"$f":"IF(ISNA(VLOOKUP($F11,'Master Data'!$G$2:$L$41,3,FALSE)),\"\",VLOOKUP($F11,'Master Data'!$G$2:$L$41,3,FALSE))","v":"OP100"},{"$f":"IF(ISNA(VLOOKUP($F11,'Master Data'!$G$2:$L$41,4,FALSE)),\"\",VLOOKUP($F11,'Master Data'!$G$2:$L$41,4,FALSE))","v":"-"},{"$f":"IF(ISNA(VLOOKUP($F11,'Master Data'!$G$2:$L$41,5,FALSE)),\"\",VLOOKUP($F11,'Master Data'!$G$2:$L$41,5,FALSE))","v":"M12000"},{"$f":"IF(ISNA(VLOOKUP($F11,'Master Data'!$G$2:$L$41,6,FALSE)),\"\",VLOOKUP($F11,'Master Data'!$G$2:$L$41,6,FALSE))","v":"-"},"0600888555647","BANK MANDIRI","KELUARGA 2 - PESERTA 2"]
[8,"KELUARGA 5 - PESERTA 1","F","E","1991-06-13","031-IP400-D4000-M12000",{"$f":"IF(ISNA(VLOOKUP($F12,'Master Data'!$G$2:$L$41,2,FALSE)),\"\",VLOOKUP($F12,'Master Data'!$G$2:$L$41,2,FALSE))","v":"IP400"},{"$f":"IF(ISNA(VLOOKUP($F12,'Master Data'!$G$2:$L$41,3,FALSE)),\"\",VLOOKUP($F12,'Master Data'!$G$2:$L$41,3,FALSE))","v":"-"},{"$f":"IF(ISNA(VLOOKUP($F12,'Master Data'!$G$2:$L$41,4,FALSE)),\"\",VLOOKUP($F12,'Master Data'!$G$2:$L$41,4,FALSE))","v":"D4000"},{"$f":"IF(ISNA(VLOOKUP($F12,'Master Data'!$G$2:$L$41,5,FALSE)),\"\",VLOOKUP($F12,'Master Data'!$G$2:$L$41,5,FALSE))","v":"M12000"},{"$f":"IF(ISNA(VLOOKUP($F12,'Master Data'!$G$2:$L$41,6,FALSE)),\"\",VLOOKUP($F12,'Master Data'!$G$2:$L$41,6,FALSE))","v":"-"},"0700765888112","BANK CENTRAL ASIA","KELUARGA 3 - PESERTA 1"]
[9,"KELUARGA 6 - PESERTA 1","M","E","1990-06-14","012-IP500-D5000",{"$f":"IF(ISNA(VLOOKUP($F13,'Master Data'!$G$2:$L$41,2,FALSE)),\"\",VLOOKUP($F13,'Master Data'!$G$2:$L$41,2,FALSE))","v":"IP500"},{"$f":"IF(ISNA(VLOOKUP($F13,'Master Data'!$G$2:$L$41,3,FALSE)),\"\",VLOOKUP($F13,'Master Data'!$G$2:$L$41,3,FALSE))","v":"-"},{"$f":"IF(ISNA(VLOOKUP($F13,'Master Data'!$G$2:$L$41,4,FALSE)),\"\",VLOOKUP($F13,'Master Data'!$G$2:$L$41,4,FALSE))","v":"D5000"},{"$f":"IF(ISNA(VLOOKUP($F13,'Master Data'!$G$2:$L$41,5,FALSE)),\"\",VLOOKUP($F13,'Master Data'!$G$2:$L$41,5,FALSE))","v":"-"},{"$f":"IF(ISNA(VLOOKUP($F13,'Master Data'!$G$2:$L$41,6,FALSE)),\"\",VLOOKUP($F13,'Master Data'!$G$2:$L$41,6,FALSE))","v":"-"},"0700765888112","BANK CENTRAL ASIA","KELUARGA 3 - PESERTA 1"]
[10,"KELUARGA 6 - PESERTA 2","M","C","2000-06-15","002-IP500",{"$f":"IF(ISNA(VLOOKUP($F14,'Master Data'!$G$2:$L$41,2,FALSE)),\"\",VLOOKUP($F14,'Master Data'!$G$2:$L$41,2,FALSE))","v":"IP500"},{"$f":"IF(ISNA(VLOOKUP($F14,'Master Data'!$G$2:$L$41,3,FALSE)),\"\",VLOOKUP($F14,'Master Data'!$G$2:$L$41,3,FALSE))","v":"-"},{"$f":"IF(ISNA(VLOOKUP($F14,'Master Data'!$G$2:$L$41,4,FALSE)),\"\",VLOOKUP($F14,'Master Data'!$G$2:$L$41,4,FALSE))","v":"-"},{"$f":"IF(ISNA(VLOOKUP($F14,'Master Data'!$G$2:$L$41,5,FALSE)),\"\",VLOOKUP($F14,'Master Data'!$G$2:$L$41,5,FALSE))","v":"-"},{"$f":"IF(ISNA(VLOOKUP($F14,'Master Data'!$G$2:$L$41,6,FALSE)),\"\",VLOOKUP($F14,'Master Data'!$G$2:$L$41,6,FALSE))","v":"-"},"0700765888112","BANK CENTRAL ASIA","KELUARGA 3 - PESERTA 1"]
[11,"KELUARGA 7 - PESERTA 1","F","E","1990-06-14","036-IP400-OP100-D4000-M12000",{"$f":"IF(ISNA(VLOOKUP($F15,'Master Data'!$G$2:$L$41,2,FALSE)),\"\",VLOOKUP($F15,'Master Data'!$G$2:$L$41,2,FALSE))","v":"IP400"},{"$f":"IF(ISNA(VLOOKUP($F15,'Master Data'!$G$2:$L$41,3,FALSE)),\"\",VLOOKUP($F15,'Master Data'!$G$2:$L$41,3,FALSE))","v":"OP100"},{"$f":"IF(ISNA(VLOOKUP($F15,'Master Data'!$G$2:$L$41,4,FALSE)),\"\",VLOOKUP($F15,'Master Data'!$G$2:$L$41,4,FALSE))","v":"D4000"},{"$f":"IF(ISNA(VLOOKUP($F15,'Master Data'!$G$2:$L$41,5,FALSE)),\"\",VLOOKUP($F15,'Master Data'!$G$2:$L$41,5,FALSE))","v":"M12000"},{"$f":"IF(ISNA(VLOOKUP($F15,'Master Data'!$G$2:$L$41,6,FALSE)),\"\",VLOOKUP($F15,'Master Data'!$G$2:$L$41,6,FALSE))","v":"-"},"0700222987012","BANK MANDIRI","KELUARGA 1 - PESERTA 3"]
[12,"KELUARGA 8 - PESERTA 1","F","E","1990-06-15","022-IP500-M14000",{"$f":"IF(ISNA(VLOOKUP($F16,'Master Data'!$G$2:$L$41,2,FALSE)),\"\",VLOOKUP($F16,'Master Data'!$G$2:$L$41,2,FALSE))","v":"IP500"},{"$f":"IF(ISNA(VLOOKUP($F16,'Master Data'!$G$2:$L$41,3,FALSE)),\"\",VLOOKUP($F16,'Master Data'!$G$2:$L$41,3,FALSE))","v":"-"},{"$f":"IF(ISNA(VLOOKUP($F16,'Master Data'!$G$2:$L$41,4,FALSE)),\"\",VLOOKUP($F16,'Master Data'!$G$2:$L$41,4,FALSE))","v":"-"},{"$f":"IF(ISNA(VLOOKUP($F16,'Master Data'!$G$2:$L$41,5,FALSE)),\"\",VLOOKUP($F16,'Master Data'!$G$2:$L$41,5,FALSE))","v":"M14000"},{"$f":"IF(ISNA(VLOOKUP($F16,'Master Data'!$G$2:$L$41,6,FALSE)),\"\",VLOOKUP($F16,'Master Data'!$G$2:$L$41,6,FALSE))","v":"-"},"0600888555647","BANK MANDIRI","KELUARGA 2 - PESERTA 3"]
[13,"KELUARGA 9 - PESERTA 1","M","E","1990-06-16","003-IP750",{"$f":"IF(ISNA(VLOOKUP($F17,'Master Data'!$G$2:$L$41,2,FALSE)),\"\",VLOOKUP($F17,'Master Data'!$G$2:$L$41,2,FALSE))","v":"IP750"},{"$f":"IF(ISNA(VLOOKUP($F17,'Master Data'!$G$2:$L$41,3,FALSE)),\"\",VLOOKUP($F17,'Master Data'!$G$2:$L$41,3,FALSE))","v":"-"},{"$f":"IF(ISNA(VLOOKUP($F17,'Master Data'!$G$2:$L$41,4,FALSE)),\"\",VLOOKUP($F17,'Master Data'!$G$2:$L$41,4,FALSE))","v":"-"},{"$f":"IF(ISNA(VLOOKUP($F17,'Master Data'!$G$2:$L$41,5,FALSE)),\"\",VLOOKUP($F17,'Master Data'!$G$2:$L$41,5,FALSE))","v":"-"},{"$f":"IF(ISNA(VLOOKUP($F17,'Master Data'!$G$2:$L$41,6,FALSE)),\"\",VLOOKUP($F17,'Master Data'!$G$2:$L$41,6,FALSE))","v":"-"},"0700765888112","BANK CENTRAL ASIA","KELUARGA 3 - PESERTA 1"]
[14,"KELUARGA 9 - PESERTA 2","F","E","1990-06-17","023-IP750-M16000",{"$f":"IF(ISNA(VLOOKUP($F18,'Master Data'!$G$2:$L$41,2,FALSE)),\"\",VLOOKUP($F18,'Master Data'!$G$2:$L$41,2,FALSE))","v":"IP750"},{"$f":"IF(ISNA(VLOOKUP($F18,'Master Data'!$G$2:$L$41,3,FALSE)),\"\",VLOOKUP($F18,'Master Data'!$G$2:$L$41,3,FALSE))","v":"-"},{"$f":"IF(ISNA(VLOOKUP($F18,'Master Data'!$G$2:$L$41,4,FALSE)),\"\",VLOOKUP($F18,'Master Data'!$G$2:$L$41,4,FALSE))","v":"-"},{"$f":"IF(ISNA(VLOOKUP($F18,'Master Data'!$G$2:$L$41,5,FALSE)),\"\",VLOOKUP($F18,'Master Data'!$G$2:$L$41,5,FALSE))","v":"M16000"},{"$f":"IF(ISNA(VLOOKUP($F18,'Master Data'!$G$2:$L$41,6,FALSE)),\"\",VLOOKUP($F18,'Master Data'!$G$2:$L$41,6,FALSE))","v":"-"},"0700765888112","BANK CENTRAL ASIA","KELUARGA 3 - PESERTA 1"]
[15,"KELUARGA 10 - PESERTA 1","F","E","1990-06-18","040-IP1200-OP225-D9000-M19000",{"$f":"IF(ISNA(VLOOKUP($F19,'Master Data'!$G$2:$L$41,2,FALSE)),\"\",VLOOKUP($F19,'Master Data'!$G$2:$L$41,2,FALSE))","v":"IP1200"},{"$f":"IF(ISNA(VLOOKUP($F19,'Master Data'!$G$2:$L$41,3,FALSE)),\"\",VLOOKUP($F19,'Master Data'!$G$2:$L$41,3,FALSE))","v":"OP225"},{"$f":"IF(ISNA(VLOOKUP($F19,'Master Data'!$G$2:$L$41,4,FALSE)),\"\",VLOOKUP($F19,'Master Data'!$G$2:$L$41,4,FALSE))","v":"D9000"},{"$f":"IF(ISNA(VLOOKUP($F19,'Master Data'!$G$2:$L$41,5,FALSE)),\"\",VLOOKUP($F19,'Master Data'!$G$2:$L$41,5,FALSE))","v":"M19000"},{"$f":"IF(ISNA(VLOOKUP($F19,'Master Data'!$G$2:$L$41,6,FALSE)),\"\",VLOOKUP($F19,'Master Data'!$G$2:$L$41,6,FALSE))","v":"-"},"0700765888112","BANK CENTRAL ASIA","KELUARGA 3 - PESERTA 1"]
[16,null,null,null,null,null,{"$f":"IF(ISNA(VLOOKUP($F20,'Master Data'!$G$2:$L$41,2,FALSE)),\"\",VLOOKUP($F20,'Master Data'!$G$2:$L$41,2,FALSE))","v":""},{"$f":"IF(ISNA(VLOOKUP($F20,'Master Data'!$G$2:$L$41,3,FALSE)),\"\",VLOOKUP($F20,'Master Data'!$G$2:$L$41,3,FALSE))","v":""},{"$f":"IF(ISNA(VLOOKUP($F20,'Master Data'!$G$2:$L$41,4,FALSE)),\"\",VLOOKUP($F20,'Master Data'!$G$2:$L$41,4,FALSE))","v":""},{"$f":"IF(ISNA(VLOOKUP($F20,'Master Data'!$G$2:$L$41,5,FALSE)),\"\",VLOOKUP($F20,'Master Data'!$G$2:$L$41,5,FALSE))","v":""},{"$f":"IF(ISNA(VLOOKUP($F20,'Master Data'!$G$2:$L$41,6,FALSE)),\"\",VLOOKUP($F20,'Master Data'!$G$2:$L$41,6,FALSE))","v":""}]
[17,null,null,null,null,null,{"$f":"IF(ISNA(VLOOKUP($F21,'Master Data'!$G$2:$L$41,2,FALSE)),\"\",VLOOKUP($F21,'Master Data'!$G$2:$L$41,2,FALSE))","v":""},{"$f":"IF(ISNA(VLOOKUP($F21,'Master Data'!$G$2:$L$41,3,FALSE)),\"\",VLOOKUP($F21,'Master Data'!$G$2:$L$41,3,FALSE))","v":""},{"$f":"IF(ISNA(VLOOKUP($F21,'Master Data'!$G$2:$L$41,4,FALSE)),\"\",VLOOKUP($F21,'Master Data'!$G$2:$L$41,4,FALSE))","v":""},{"$f":"IF(ISNA(VLOOKUP($F21,'Master Data'!$G$2:$L$41,5,FALSE)),\"\",VLOOKUP($F21,'Master Data'!$G$2:$L$41,5,FALSE))","v":""},{"$f":"IF(ISNA(VLOOKUP($F21,'Master Data'!$G$2:$L$41,6,FALSE)),\"\",VLOOKUP($F21,'Master Data'!$G$2:$L$41,6,FALSE))","v":""}]
[18,null,null,null,null,null,{"$f":"IF(ISNA(VLOOKUP($F22,'Master Data'!$G$2:$L$41,2,FALSE)),\"\",VLOOKUP($F22,'Master Data'!$G$2:$L$41,2,FALSE))","v":""},{"$f":"IF(ISNA(VLOOKUP($F22,'Master Data'!$G$2:$L$41,3,FALSE)),\"\",VLOOKUP($F22,'Master Data'!$G$2:$L$41,3,FALSE))","v":""},{"$f":"IF(ISNA(VLOOKUP($F22,'Master Data'!$G$2:$L$41,4,FALSE)),\"\",VLOOKUP($F22,'Master Data'!$G$2:$L$41,4,FALSE))","v":""},{"$f":"IF(ISNA(VLOOKUP($F22,'Master Data'!$G$2:$L$41,5,FALSE)),\"\",VLOOKUP($F22,'Master Data'!$G$2:$L$41,5,FALSE))","v":""},{"$f":"IF(ISNA(VLOOKUP($F22,'Master Data'!$G$2:$L$41,6,FALSE)),\"\",VLOOKUP($F22,'Master Data'!$G$2:$L$41,6,FALSE))","v":""}]
[19,null,null,null,null,null,{"$f":"IF(ISNA(VLOOKUP($F23,'Master Data'!$G$2:$L$41,2,FALSE)),\"\",VLOOKUP($F23,'Master Data'!$G$2:$L$41,2,FALSE))","v":""},{"$f":"IF(ISNA(VLOOKUP($F23,'Master Data'!$G$2:$L$41,3,FALSE)),\"\",VLOOKUP($F23,'Master Data'!$G$2:$L$41,3,FALSE))","v":""},{"$f":"IF(ISNA(VLOOKUP($F23,'Master Data'!$G$2:$L$41,4,FALSE)),\"\",VLOOKUP($F23,'Master Data'!$G$2:$L$41,4,FALSE))","v":""},{"$f":"IF(ISNA(VLOOKUP($F23,'Master Data'!$G$2:$L$41,5,FALSE)),\"\",VLOOKUP($F23,'Master Data'!$G$2:$L$41,5,FALSE))","v":""},{"$f":"IF(ISNA(VLOOKUP($F23,'Master Data'!$G$2:$L$41,6,FALSE)),\"\",VLOOKUP($F23,'Master Data'!$G$2:$L$41,6,FALSE))","v":""}]
[20,null,null,null,null,null,{"$f":"IF(ISNA(VLOOKUP($F24,'Master Data'!$G$2:$L$41,2,FALSE)),\"\",VLOOKUP($F24,'Master Data'!$G$2:$L$41,2,FALSE))","v":""},{"$f":"IF(ISNA(VLOOKUP($F24,'Master Data'!$G$2:$L$41,3,FALSE)),\"\",VLOOKUP($F24,'Master Data'!$G$2:$L$41,3,FALSE))","v":""},{"$f":"IF(ISNA(VLOOKUP($F24,'Master Data'!$G$2:$L$41,4,FALSE)),\"\",VLOOKUP($F24,'Master Data'!$G$2:$L$41,4,FALSE))","v":""},{"$f":"IF(ISNA(VLOOKUP($F24,'Master Data'!$G$2:$L$41,5,FALSE)),\"\",VLOOKUP($F24,'Master Data'!$G$2:$L$41,5,FALSE))","v":""},{"$f":"IF(ISNA(VLOOKUP($F24,'Master Data'!$G$2:$L$41,6,FALSE)),\"\",VLOOKUP($F24,'Master Data'!$G$2:$L$41,6,FALSE))","v":""}]
[21,null,null,null,null,null,{"$f":"IF(ISNA(VLOOKUP($F25,'Master Data'!$G$2:$L$41,2,FALSE)),\"\",VLOOKUP($F25,'Master Data'!$G$2:$L$41,2,FALSE))","v":""},{"$f":"IF(ISNA(VLOOKUP($F25,'Master Data'!$G$2:$L$41,3,FALSE)),\"\",VLOOKUP($F25,'Master Data'!$G$2:$L$41,3,FALSE))","v":""},{"$f":"IF(ISNA(VLOOKUP($F25,'Master Data'!$G$2:$L$41,4,FALSE)),\"\",VLOOKUP($F25,'Master Data'!$G$2:$L$41,4,FALSE))","v":""},{"$f":"IF(ISNA(VLOOKUP($F25,'Master Data'!$G$2:$L$41,5,FALSE)),\"\",VLOOKUP($F25,'Master Data'!$G$2:$L$41,5,FALSE))","v":""},{"$f":"IF(ISNA(VLOOKUP($F25,'Master Data'!$G$2:$L$41,6,FALSE)),\"\",VLOOKUP($F25,'Master Data'!$G$2:$L$41,6,FALSE))","v":""}]
[22,null,null,null,null,null,{"$f":"IF(ISNA(VLOOKUP($F26,'Master Data'!$G$2:$L$41,2,FALSE)),\"\",VLOOKUP($F26,'Master Data'!$G$2:$L$41,2,FALSE))","v":""},{"$f":"IF(ISNA(VLOOKUP($F26,'Master Data'!$G$2:$L$41,3,FALSE)),\"\",VLOOKUP($F26,'Master Data'!$G$2:$L$41,3,FALSE))","v":""},{"$f":"IF(ISNA(VLOOKUP($F26,'Master Data'!$G$2:$L$41,4,FALSE)),\"\",VLOOKUP($F26,'Master Data'!$G$2:$L$41,4,FALSE))","v":""},{"$f":"IF(ISNA(VLOOKUP($F26,'Master Data'!$G$2:$L$41,5,FALSE)),\"\",VLOOKUP($F26,'Master Data'!$G$2:$L$41,5,FALSE))","v":""},{"$f":"IF(ISNA(VLOOKUP($F26,'Master Data'!$G$2:$L$41,6,FALSE)),\"\",VLOOKUP($F26,'Master Data'!$G$2:$L$41,6,FALSE))","v":""}]
[23,null,null,null,null,null,{"$f":"IF(ISNA(VLOOKUP($F27,'Master Data'!$G$2:$L$41,2,FALSE)),\"\",VLOOKUP($F27,'Master Data'!$G$2:$L$41,2,FALSE))","v":""},{"$f":"IF(ISNA(VLOOKUP($F27,'Master Data'!$G$2:$L$41,3,FALSE)),\"\",VLOOKUP($F27,'Master Data'!$G$2:$L$41,3,FALSE))","v":""},{"$f":"IF(ISNA(VLOOKUP($F27,'Master Data'!$G$2:$L$41,4,FALSE)),\"\",VLOOKUP($F27,'Master Data'!$G$2:$L$41,4,FALSE))","v":""},{"$f":"IF(ISNA(VLOOKUP($F27,'Master Data'!$G$2:$L$41,5,FALSE)),\"\",VLOOKUP($F27,'Master Data'!$G$2:$L$41,5,FALSE))","v":""},{"$f":"IF(ISNA(VLOOKUP($F27,'Master Data'!$G$2:$L$41,6,FALSE)),\"\",VLOOKUP($F27,'Master Data'!$G$2:$L$41,6,FALSE))","v":""}]
[24,null,null,null,null,null,{"$f":"IF(ISNA(VLOOKUP($F28,'Master Data'!$G$2:$L$41,2,FALSE)),\"\",VLOOKUP($F28,'Master Data'!$G$2:$L$41,2,FALSE))","v":""},{"$f":"IF(ISNA(VLOOKUP($F28,'Master Data'!$G$2:$L$41,3,FALSE)),\"\",VLOOKUP($F28,'Master Data'!$G$2:$L$41,3,FALSE))","v":""},{"$f":"IF(ISNA(VLOOKUP($F28,'Master Data'!$G$2:$L$41,4,FALSE)),\"\",VLOOKUP($F28,'Master Data'!$G$2:$L$41,4,FALSE))","v":""},{"$f":"IF(ISNA(VLOOKUP($F28,'Master Data'!$G$2:$L$41,5,FALSE)),\"\",VLOOKUP($F28,'Master Data'!$G$2:$L$41,5,FALSE))","v":""},{"$f":"IF(ISNA(VLOOKUP($F28,'Master Data'!$G$2:$L$41,6,FALSE)),\"\",VLOOKUP($F28,'Master Data'!$G$2:$L$41,6,FALSE))","v":""}]
[25,null,null,null,null,null,{"$f":"IF(ISNA(VLOOKUP($F29,'Master Data'!$G$2:$L$41,2,FALSE)),\"\",VLOOKUP($F29,'Master Data'!$G$2:$L$41,2,FALSE))","v":""},{"$f":"IF(ISNA(VLOOKUP($F29,'Master Data'!$G$2:$L$41,3,FALSE)),\"\",VLOOKUP($F29,'Master Data'!$G$2:$L$41,3,FALSE))","v":""},{"$f":"IF(ISNA(VLOOKUP($F29,'Master Data'!$G$2:$L$41,4,FALSE)),\"\",VLOOKUP($F29,'Master Data'!$G$2:$L$41,4,FALSE))","v":""},{"$f":"IF(ISNA(VLOOKUP($F29,'Master Data'!$G$2:$L$41,5,FALSE)),\"\",VLOOKUP($F29,'Master Data'!$G$2:$L$41,5,FALSE))","v":""},{"$f":"IF(ISNA(VLOOKUP($F29,'Master Data'!$G$2:$L$41,6,FALSE)),\"\",VLOOKUP($F29,'Master Data'!$G$2:$L$41,6,FALSE))","v":""}]
[26,null,null,null,null,null,{"$f":"IF(ISNA(VLOOKUP($F30,'Master Data'!$G$2:$L$41,2,FALSE)),\"\",VLOOKUP($F30,'Master Data'!$G$2:$L$41,2,FALSE))","v":""},{"$f":"IF(ISNA(VLOOKUP($F30,'Master Data'!$G$2:$L$41,3,FALSE)),\"\",VLOOKUP($F30,'Master Data'!$G$2:$L$41,3,FALSE))","v":""},{"$f":"IF(ISNA(VLOOKUP($F30,'Master Data'!$G$2:$L$41,4,FALSE)),\"\",VLOOKUP($F30,'Master Data'!$G$2:$L$41,4,FALSE))","v":""},{"$f":"IF(ISNA(VLOOKUP($F30,'Master Data'!$G$2:$L$41,5,FALSE)),\"\",VLOOKUP($F30,'Master Data'!$G$2:$L$41,5,FALSE))","v":""},{"$f":"IF(ISNA(VLOOKUP($F30,'Master Data'!$G$2:$L$41,6,FALSE)),\"\",VLOOKUP($F30,'Master Data'!$G$2:$L$41,6,FALSE))","v":""}]
[27,null,null,null,null,null,{"$f":"IF(ISNA(VLOOKUP($F31,'Master Data'!$G$2:$L$41,2,FALSE)),\"\",VLOOKUP($F31,'Master Data'!$G$2:$L$41,2,FALSE))","v":""},{"$f":"IF(ISNA(VLOOKUP($F31,'Master Data'!$G$2:$L$41,3,FALSE)),\"\",VLOOKUP($F31,'Master Data'!$G$2:$L$41,3,FALSE))","v":""},{"$f":"IF(ISNA(VLOOKUP($F31,'Master Data'!$G$2:$L$41,4,FALSE)),\"\",VLOOKUP($F31,'Master Data'!$G$2:$L$41,4,FALSE))","v":""},{"$f":"IF(ISNA(VLOOKUP($F31,'Master Data'!$G$2:$L$41,5,FALSE)),\"\",VLOOKUP($F31,'Master Data'!$G$2:$L$41,5,FALSE))","v":""},{"$f":"IF(ISNA(VLOOKUP($F31,'Master Data'!$G$2:$L$41,6,FALSE)),\"\",VLOOKUP($F31,'Master Data'!$G$2:$L$41,6,FALSE))","v":""}]
[28,null,null,null,null,null,{"$f":"IF(ISNA(VLOOKUP($F32,'Master Data'!$G$2:$L$41,2,FALSE)),\"\",VLOOKUP($F32,'Master Data'!$G$2:$L$41,2,FALSE))","v":""},{"$f":"IF(ISNA(VLOOKUP($F32,'Master Data'!$G$2:$L$41,3,FALSE)),\"\",VLOOKUP($F32,'Master Data'!$G$2:$L$41,3,FALSE))","v":""},{"$f":"IF(ISNA(VLOOKUP($F32,'Master Data'!$G$2:$L$41,4,FALSE)),\"\",VLOOKUP($F32,'Master Data'!$G$2:$L$41,4,FALSE))","v":""},{"$f":"IF(ISNA(VLOOKUP($F32,'Master Data'!$G$2:$L$41,5,FALSE)),\"\",VLOOKUP($F32,'Master Data'!$G$2:$L$41,5,FALSE))","v":""},{"$f":"IF(ISNA(VLOOKUP($F32,'Master Data'!$G$2:$L$41,6,FALSE)),\"\",VLOOKUP($F32,'Master Data'!$G$2:$L$41,6,FALSE))","v":""}]
[29,null,null,null,null,null,{"$f":"IF(ISNA(VLOOKUP($F33,'Master Data'!$G$2:$L$41,2,FALSE)),\"\",VLOOKUP($F33,'Master Data'!$G$2:$L$41,2,FALSE))","v":""},{"$f":"IF(ISNA(VLOOKUP($F33,'Master Data'!$G$2:$L$41,3,FALSE)),\"\",VLOOKUP($F33,'Master Data'!$G$2:$L$41,3,FALSE))","v":""},{"$f":"IF(ISNA(VLOOKUP($F33,'Master Data'!$G$2:$L$41,4,FALSE)),\"\",VLOOKUP($F33,'Master Data'!$G$2:$L$41,4,FALSE))","v":""},{"$f":"IF(ISNA(VLOOKUP($F33,'Master Data'!$G$2:$L$41,5,FALSE)),\"\",VLOOKUP($F33,'Master Data'!$G$2:$L$41,5,FALSE))","v":""},{"$f":"IF(ISNA(VLOOKUP($F33,'Master Data'!$G$2:$L$41,6,FALSE)),\"\",VLOOKUP($F33,'Master Data'!$G$2:$L$41,6,FALSE))","v":""}]
[30,null,null,null,null,null,{"$f":"IF(ISNA(VLOOKUP($F34,'Master Data'!$G$2:$L$41,2,FALSE)),\"\",VLOOKUP($F34,'Master Data'!$G$2:$L$41,2,FALSE))","v":""},{"$f":"IF(ISNA(VLOOKUP($F34,'Master Data'!$G$2:$L$41,3,FALSE)),\"\",VLOOKUP($F34,'Master Data'!$G$2:$L$41,3,FALSE))","v":""},{"$f":"IF(ISNA(VLOOKUP($F34,'Master Data'!$G$2:$L$41,4,FALSE)),\"\",VLOOKUP($F34,'Master Data'!$G$2:$L$41,4,FALSE))","v":""},{"$f":"IF(ISNA(VLOOKUP($F34,'Master Data'!$G$2:$L$41,5,FALSE)),\"\",VLOOKUP($F34,'Master Data'!$G$2:$L$41,5,FALSE))","v":""},{"$f":"IF(ISNA(VLOOKUP($F34,'Master Data'!$G$2:$L$41,6,FALSE)),\"\",VLOOKUP($F34,'Master Data'!$G$2:$L$41,6,FALSE))","v":""}]
[31,null,null,null,null,null,{"$f":"IF(ISNA(VLOOKUP($F35,'Master Data'!$G$2:$L$41,2,FALSE)),\"\",VLOOKUP($F35,'Master Data'!$G$2:$L$41,2,FALSE))","v":""},{"$f":"IF(ISNA(VLOOKUP($F35,'Master Data'!$G$2:$L$41,3,FALSE)),\"\",VLOOKUP($F35,'Master Data'!$G$2:$L$41,3,FALSE))","v":""},{"$f":"IF(ISNA(VLOOKUP($F35,'Master Data'!$G$2:$L$41,4,FALSE)),\"\",VLOOKUP($F35,'Master Data'!$G$2:$L$41,4,FALSE))","v":""},{"$f":"IF(ISNA(VLOOKUP($F35,'Master Data'!$G$2:$L$41,5,FALSE)),\"\",VLOOKUP($F35,'Master Data'!$G$2:$L$41,5,FALSE))","v":""},{"$f":"IF(ISNA(VLOOKUP($F35,'Master Data'!$G$2:$L$41,6,FALSE)),\"\",VLOOKUP($F35,'Master Data'!$G$2:$L$41,6,FALSE))","v":""}]
[32,null,null,null,null,null,{"$f":"IF(ISNA(VLOOKUP($F36,'Master Data'!$G$2:$L$41,2,FALSE)),\"\",VLOOKUP($F36,'Master Data'!$G$2:$L$41,2,FALSE))","v":""},{"$f":"IF(ISNA(VLOOKUP($F36,'Master Data'!$G$2:$L$41,3,FALSE)),\"\",VLOOKUP($F36,'Master Data'!$G$2:$L$41,3,FALSE))","v":""},{"$f":"IF(ISNA(VLOOKUP($F36,'Master Data'!$G$2:$L$41,4,FALSE)),\"\",VLOOKUP($F36,'Master Data'!$G$2:$L$41,4,FALSE))","v":""},{"$f":"IF(ISNA(VLOOKUP($F36,'Master Data'!$G$2:$L$41,5,FALSE)),\"\",VLOOKUP($F36,'Master Data'!$G$2:$L$41,5,FALSE))","v":""},{"$f":"IF(ISNA(VLOOKUP($F36,'Master Data'!$G$2:$L$41,6,FALSE)),\"\",VLOOKUP($F36,'Master Data'!$G$2:$L$41,6,FALSE))","v":""}]
[33,null,null,null,null,null,{"$f":"IF(ISNA(VLOOKUP($F37,'Master Data'!$G$2:$L$41,2,FALSE)),\"\",VLOOKUP($F37,'Master Data'!$G$2:$L$41,2,FALSE))","v":""},{"$f":"IF(ISNA(VLOOKUP($F37,'Master Data'!$G$2:$L$41,3,FALSE)),\"\",VLOOKUP($F37,'Master Data'!$G$2:$L$41,3,FALSE))","v":""},{"$f":"IF(ISNA(VLOOKUP($F37,'Master Data'!$G$2:$L$41,4,FALSE)),\"\",VLOOKUP($F37,'Master Data'!$G$2:$L$41,4,FALSE))","v":""},{"$f":"IF(ISNA(VLOOKUP($F37,'Master Data'!$G$2:$L$41,5,FALSE)),\"\",VLOOKUP($F37,'Master Data'!$G$2:$L$41,5,FALSE))","v":""},{"$f":"IF(ISNA(VLOOKUP($F37,'Master Data'!$G$2:$L$41,6,FALSE)),\"\",VLOOKUP($F37,'Master Data'!$G$2:$L$41,6,FALSE))","v":""}]
[34,null,null,null,null,null,{"$f":"IF(ISNA(VLOOKUP($F38,'Master Data'!$G$2:$L$41,2,FALSE)),\"\",VLOOKUP($F38,'Master Data'!$G$2:$L$41,2,FALSE))","v":""},{"$f":"IF(ISNA(VLOOKUP($F38,'Master Data'!$G$2:$L$41,3,FALSE)),\"\",VLOOKUP($F38,'Master Data'!$G$2:$L$41,3,FALSE))","v":""},{"$f":"IF(ISNA(VLOOKUP($F38,'Master Data'!$G$2:$L$41,4,FALSE)),\"\",VLOOKUP($F38,'Master Data'!$G$2:$L$41,4,FALSE))","v":""},{"$f":"IF(ISNA(VLOOKUP($F38,'Master Data'!$G$2:$L$41,5,FALSE)),\"\",VLOOKUP($F38,'Master Data'!$G$2:$L$41,5,FALSE))","v":""},{"$f":"IF(ISNA(VLOOKUP($F38,'Master Data'!$G$2:$L$41,6,FALSE)),\"\",VLOOKUP($F38,'Master Data'!$G$2:$L$41,6,FALSE))","v":""}]
[35,null,null,null,null,null,{"$f":"IF(ISNA(VLOOKUP($F39,'Master Data'!$G$2:$L$41,2,FALSE)),\"\",VLOOKUP($F39,'Master Data'!$G$2:$L$41,2,FALSE))","v":""},{"$f":"IF(ISNA(VLOOKUP($F39,'Master Data'!$G$2:$L$41,3,FALSE)),\"\",VLOOKUP($F39,'Master Data'!$G$2:$L$41,3,FALSE))","v":""},{"$f":"IF(ISNA(VLOOKUP($F39,'Master Data'!$G$2:$L$41,4,FALSE)),\"\",VLOOKUP($F39,'Master Data'!$G$2:$L$41,4,FALSE))","v":""},{"$f":"IF(ISNA(VLOOKUP($F39,'Master Data'!$G$2:$L$41,5,FALSE)),\"\",VLOOKUP($F39,'Master Data'!$G$2:$L$41,5,FALSE))","v":""},{"$f":"IF(ISNA(VLOOKUP($F39,'Master Data'!$G$2:$L$41,6,FALSE)),\"\",VLOOKUP($F39,'Master Data'!$G$2:$L$41,6,FALSE))","v":""}]
[36,null,null,null,null,null,{"$f":"IF(ISNA(VLOOKUP($F40,'Master Data'!$G$2:$L$41,2,FALSE)),\"\",VLOOKUP($F40,'Master Data'!$G$2:$L$41,2,FALSE))","v":""},{"$f":"IF(ISNA(VLOOKUP($F40,'Master Data'!$G$2:$L$41,3,FALSE)),\"\",VLOOKUP($F40,'Master Data'!$G$2:$L$41,3,FALSE))","v":""},{"$f":"IF(ISNA(VLOOKUP($F40,'Master Data'!$G$2:$L$41,4,FALSE)),\"\",VLOOKUP($F40,'Master Data'!$G$2:$L$41,4,FALSE))","v":""},{"$f":"IF(ISNA(VLOOKUP($F40,'Master Data'!$G$2:$L$41,5,FALSE)),\"\",VLOOKUP($F40,'Master Data'!$G$2:$L$41,5,FALSE))","v":""},{"$f":"IF(ISNA(VLOOKUP($F40,'Master Data'!$G$2:$L$41,6,FALSE)),\"\",VLOOKUP($F40,'Master Data'!$G$2:$L$41,6,FALSE))","v":""}]
[37,null,null,null,null,null,{"$f":"IF(ISNA(VLOOKUP($F41,'Master Data'!$G$2:$L$41,2,FALSE)),\"\",VLOOKUP($F41,'Master Data'!$G$2:$L$41,2,FALSE))","v":""},{"$f":"IF(ISNA(VLOOKUP($F41,'Master Data'!$G$2:$L$41,3,FALSE)),\"\",VLOOKUP($F41,'Master Data'!$G$2:$L$41,3,FALSE))","v":""},{"$f":"IF(ISNA(VLOOKUP($F41,'Master Data'!$G$2:$L$41,4,FALSE)),\"\",VLOOKUP($F41,'Master Data'!$G$2:$L$41,4,FALSE))","v":""},{"$f":"IF(ISNA(VLOOKUP($F41,'Master Data'!$G$2:$L$41,5,FALSE)),\"\",VLOOKUP($F41,'Master Data'!$G$2:$L$41,5,FALSE))","v":""},{"$f":"IF(ISNA(VLOOKUP($F41,'Master Data'!$G$2:$L$41,6,FALSE)),\"\",VLOOKUP($F41,'Master Data'!$G$2:$L$41,6,FALSE))","v":""}]
[38,null,null,null,null,null,{"$f":"IF(ISNA(VLOOKUP($F42,'Master Data'!$G$2:$L$41,2,FALSE)),\"\",VLOOKUP($F42,'Master Data'!$G$2:$L$41,2,FALSE))","v":""},{"$f":"IF(ISNA(VLOOKUP($F42,'Master Data'!$G$2:$L$41,3,FALSE)),\"\",VLOOKUP($F42,'Master Data'!$G$2:$L$41,3,FALSE))","v":""},{"$f":"IF(ISNA(VLOOKUP($F42,'Master Data'!$G$2:$L$41,4,FALSE)),\"\",VLOOKUP($F42,'Master Data'!$G$2:$L$41,4,FALSE))","v":""},{"$f":"IF(ISNA(VLOOKUP($F42,'Master Data'!$G$2:$L$41,5,FALSE)),\"\",VLOOKUP($F42,'Master Data'!$G$2:$L$41,5,FALSE))","v":""},{"$f":"IF(ISNA(VLOOKUP($F42,'Master Data'!$G$2:$L$41,6,FALSE)),\"\",VLOOKUP($F42,'Master Data'!$G$2:$L$41,6,FALSE))","v":""}]
[39,null,null,null,null,null,{"$f":"IF(ISNA(VLOOKUP($F43,'Master Data'!$G$2:$L$41,2,FALSE)),\"\",VLOOKUP($F43,'Master Data'!$G$2:$L$41,2,FALSE))","v":""},{"$f":"IF(ISNA(VLOOKUP($F43,'Master Data'!$G$2:$L$41,3,FALSE)),\"\",VLOOKUP($F43,'Master Data'!$G$2:$L$41,3,FALSE))","v":""},{"$f":"IF(ISNA(VLOOKUP($F43,'Master Data'!$G$2:$L$41,4,FALSE)),\"\",VLOOKUP($F43,'Master Data'!$G$2:$L$41,4,FALSE))","v":""},{"$f":"IF(ISNA(VLOOKUP($F43,'Master Data'!$G$2:$L$41,5,FALSE)),\"\",VLOOKUP($F43,'Master Data'!$G$2:$L$41,5,FALSE))","v":""},{"$f":"IF(ISNA(VLOOKUP($F43,'Master Data'!$G$2:$L$41,6,FALSE)),\"\",VLOOKUP($F43,'Master Data'!$G$2:$L$41,6,FALSE))","v":""}]
[40,null,null,null,null,null,{"$f":"IF(ISNA(VLOOKUP($F44,'Master Data'!$G$2:$L$41,2,FALSE)),\"\",VLOOKUP($F44,'Master Data'!$G$2:$L$41,2,FALSE))","v":""},{"$f":"IF(ISNA(VLOOKUP($F44,'Master Data'!$G$2:$L$41,3,FALSE)),\"\",VLOOKUP($F44,'Master Data'!$G$2:$L$41,3,FALSE))","v":""},{"$f":"IF(ISNA(VLOOKUP($F44,'Master Data'!$G$2:$L$41,4,FALSE)),\"\",VLOOKUP($F44,'Master Data'!$G$2:$L$41,4,FALSE))","v":""},{"$f":"IF(ISNA(VLOOKUP($F44,'Master Data'!$G$2:$L$41,5,FALSE)),\"\",VLOOKUP($F44,'Master Data'!$G$2:$L$41,5,FALSE))","v":""},{"$f":"IF(ISNA(VLOOKUP($F44,'Master Data'!$G$2:$L$41,6,FALSE)),\"\",VLOOKUP($F44,'Master Data'!$G$2:$L$41,6,FALSE))","v":""}]
[41,null,null,null,null,null,{"$f":"IF(ISNA(VLOOKUP($F45,'Master Data'!$G$2:$L$41,2,FALSE)),\"\",VLOOKUP($F45,'Master Data'!$G$2:$L$41,2,FALSE))","v":""},{"$f":"IF(ISNA(VLOOKUP($F45,'Master Data'!$G$2:$L$41,3,FALSE)),\"\",VLOOKUP($F45,'Master Data'!$G$2:$L$41,3,FALSE))","v":""},{"$f":"IF(ISNA(VLOOKUP($F45,'Master Data'!$G$2:$L$41,4,FALSE)),\"\",VLOOKUP($F45,'Master Data'!$G$2:$L$41,4,FALSE))","v":""},{"$f":"IF(ISNA(VLOOKUP($F45,'Master Data'!$G$2:$L$41,5,FALSE)),\"\",VLOOKUP($F45,'Master Data'!$G$2:$L$41,5,FALSE))","v":""},{"$f":"IF(ISNA(VLOOKUP($F45,'Master Data'!$G$2:$L$41,6,FALSE)),\"\",VLOOKUP($F45,'Master Data'!$G$2:$L$41,6,FALSE))","v":""}]
[42,null,null,null,null,null,{"$f":"IF(ISNA(VLOOKUP($F46,'Master Data'!$G$2:$L$41,2,FALSE)),\"\",VLOOKUP($F46,'Master Data'!$G$2:$L$41,2,FALSE))","v":""},{"$f":"IF(ISNA(VLOOKUP($F46,'Master Data'!$G$2:$L$41,3,FALSE)),\"\",VLOOKUP($F46,'Master Data'!$G$2:$L$41,3,FALSE))","v":""},{"$f":"IF(ISNA(VLOOKUP($F46,'Master Data'!$G$2:$L$41,4,FALSE)),\"\",VLOOKUP($F46,'Master Data'!$G$2:$L$41,4,FALSE))","v":""},{"$f":"IF(ISNA(VLOOKUP($F46,'Master Data'!$G$2:$L$41,5,FALSE)),\"\",VLOOKUP($F46,'Master Data'!$G$2:$L$41,5,FALSE))","v":""},{"$f":"IF(ISNA(VLOOKUP($F46,'Master Data'!$G$2:$L$41,6,FALSE)),\"\",VLOOKUP($F46,'Master Data'!$G$2:$L$41,6,FALSE))","v":""}]
[43,null,null,null,null,null,{"$f":"IF(ISNA(VLOOKUP($F47,'Master Data'!$G$2:$L$41,2,FALSE)),\"\",VLOOKUP($F47,'Master Data'!$G$2:$L$41,2,FALSE))","v":""},{"$f":"IF(ISNA(VLOOKUP($F47,'Master Data'!$G$2:$L$41,3,FALSE)),\"\",VLOOKUP($F47,'Master Data'!$G$2:$L$41,3,FALSE))","v":""},{"$f":"IF(ISNA(VLOOKUP($F47,'Master Data'!$G$2:$L$41,4,FALSE)),\"\",VLOOKUP($F47,'Master Data'!$G$2:$L$41,4,FALSE))","v":""},{"$f":"IF(ISNA(VLOOKUP($F47,'Master Data'!$G$2:$L$41,5,FALSE)),\"\",VLOOKUP($F47,'Master Data'!$G$2:$L$41,5,FALSE))","v":""},{"$f":"IF(ISNA(VLOOKUP($F47,'Master Data'!$G$2:$L$41,6,FALSE)),\"\",VLOOKUP($F47,'Master Data'!$G$2:$L$41,6,FALSE))","v":""}]
[44,null,null,null,null,null,{"$f":"IF(ISNA(VLOOKUP($F48,'Master Data'!$G$2:$L$41,2,FALSE)),\"\",VLOOKUP($F48,'Master Data'!$G$2:$L$41,2,FALSE))","v":""},{"$f":"IF(ISNA(VLOOKUP($F48,'Master Data'!$G$2:$L$41,3,FALSE)),\"\",VLOOKUP($F48,'Master Data'!$G$2:$L$41,3,FALSE))","v":""},{"$f":"IF(ISNA(VLOOKUP($F48,'Master Data'!$G$2:$L$41,4,FALSE)),\"\",VLOOKUP($F48,'Master Data'!$G$2:$L$41,4,FALSE))","v":""},{"$f":"IF(ISNA(VLOOKUP($F48,'Master Data'!$G$2:$L$41,5,FALSE)),\"\",VLOOKUP($F48,'Master Data'!$G$2:$L$41,5,FALSE))","v":""},{"$f":"IF(ISNA(VLOOKUP($F48,'Master Data'!$G$2:$L$41,6,FALSE)),\"\",VLOOKUP($F48,'Master Data'!$G$2:$L$41,6,FALSE))","v":""}]
[45,null,null,null,null,null,{"$f":"IF(ISNA(VLOOKUP($F49,'Master Data'!$G$2:$L$41,2,FALSE)),\"\",VLOOKUP($F49,'Master Data'!$G$2:$L$41,2,FALSE))","v":""},{"$f":"IF(ISNA(VLOOKUP($F49,'Master Data'!$G$2:$L$41,3,FALSE)),\"\",VLOOKUP($F49,'Master Data'!$G$2:$L$41,3,FALSE))","v":""},{"$f":"IF(ISNA(VLOOKUP($F49,'Master Data'!$G$2:$L$41,4,FALSE)),\"\",VLOOKUP($F49,'Master Data'!$G$2:$L$41,4,FALSE))","v":""},{"$f":"IF(ISNA(VLOOKUP($F49,'Master Data'!$G$2:$L$41,5,FALSE)),\"\",VLOOKUP($F49,'Master Data'!$G$2:$L$41,5,FALSE))","v":""},{"$f":"IF(ISNA(VLOOKUP($F49,'Master Data'!$G$2:$L$41,6,FALSE)),\"\",VLOOKUP($F49,'Master Data'!$G$2:$L$41,6,FALSE))","v":""}]
[46,null,null,null,null,null,{"$f":"IF(ISNA(VLOOKUP($F50,'Master Data'!$G$2:$L$41,2,FALSE)),\"\",VLOOKUP($F50,'Master Data'!$G$2:$L$41,2,FALSE))","v":""},{"$f":"IF(ISNA(VLOOKUP($F50,'Master Data'!$G$2:$L$41,3,FALSE)),\"\",VLOOKUP($F50,'Master Data'!$G$2:$L$41,3,FALSE))","v":""},{"$f":"IF(ISNA(VLOOKUP($F50,'Master Data'!$G$2:$L$41,4,FALSE)),\"\",VLOOKUP($F50,'Master Data'!$G$2:$L$41,4,FALSE))","v":""},{"$f":"IF(ISNA(VLOOKUP($F50,'Master Data'!$G$2:$L$41,5,FALSE)),\"\",VLOOKUP($F50,'Master Data'!$G$2:$L$41,5,FALSE))","v":""},{"$f":"IF(ISNA(VLOOKUP($F50,'Master Data'!$G$2:$L$41,6,FALSE)),\"\",VLOOKUP($F50,'Master Data'!$G$2:$L$41,6,FALSE))","v":""}]
[47,null,null,null,null,null,{"$f":"IF(ISNA(VLOOKUP($F51,'Master Data'!$G$2:$L$41,2,FALSE)),\"\",VLOOKUP($F51,'Master Data'!$G$2:$L$41,2,FALSE))","v":""},{"$f":"IF(ISNA(VLOOKUP($F51,'Master Data'!$G$2:$L$41,3,FALSE)),\"\",VLOOKUP($F51,'Master Data'!$G$2:$L$41,3,FALSE))","v":""},{"$f":"IF(ISNA(VLOOKUP($F51,'Master Data'!$G$2:$L$41,4,FALSE)),\"\",VLOOKUP($F51,'Master Data'!$G$2:$L$41,4,FALSE))","v":""},{"$f":"IF(ISNA(VLOOKUP($F51,'Master Data'!$G$2:$L$41,5,FALSE)),\"\",VLOOKUP($F51,'Master Data'!$G$2:$L$41,5,FALSE))","v":""},{"$f":"IF(ISNA(VLOOKUP($F51,'Master Data'!$G$2:$L$41,6,FALSE)),\"\",VLOOKUP($F51,'Master Data'!$G$2:$L$41,6,FALSE))","v":""}]
[48,null,null,null,null,null,{"$f":"IF(ISNA(VLOOKUP($F52,'Master Data'!$G$2:$L$41,2,FALSE)),\"\",VLOOKUP($F52,'Master Data'!$G$2:$L$41,2,FALSE))","v":""},{"$f":"IF(ISNA(VLOOKUP($F52,'Master Data'!$G$2:$L$41,3,FALSE)),\"\",VLOOKUP($F52,'Master Data'!$G$2:$L$41,3,FALSE))","v":""},{"$f":"IF(ISNA(VLOOKUP($F52,'Master Data'!$G$2:$L$41,4,FALSE)),\"\",VLOOKUP($F52,'Master Data'!$G$2:$L$41,4,FALSE))","v":""},{"$f":"IF(ISNA(VLOOKUP($F52,'Master Data'!$G$2:$L$41,5,FALSE)),\"\",VLOOKUP($F52,'Master Data'!$G$2:$L$41,5,FALSE))","v":""},{"$f":"IF(ISNA(VLOOKUP($F52,'Master Data'!$G$2:$L$41,6,FALSE)),\"\",VLOOKUP($F52,'Master Data'!$G$2:$L$41,6,FALSE))","v":""}]
[49,null,null,null,null,null,{"$f":"IF(ISNA(VLOOKUP($F53,'Master Data'!$G$2:$L$41,2,FALSE)),\"\",VLOOKUP($F53,'Master Data'!$G$2:$L$41,2,FALSE))","v":""},{"$f":"IF(ISNA(VLOOKUP($F53,'Master Data'!$G$2:$L$41,3,FALSE)),\"\",VLOOKUP($F53,'Master Data'!$G$2:$L$41,3,FALSE))","v":""},{"$f":"IF(ISNA(VLOOKUP($F53,'Master Data'!$G$2:$L$41,4,FALSE)),\"\",VLOOKUP($F53,'Master Data'!$G$2:$L$41,4,FALSE))","v":""},{"$f":"IF(ISNA(VLOOKUP($F53,'Master Data'!$G$2:$L$41,5,FALSE)),\"\",VLOOKUP($F53,'Master Data'!$G$2:$L$41,5,FALSE))","v":""},{"$f":"IF(ISNA(VLOOKUP($F53,'Master Data'!$G$2:$L$41,6,FALSE)),\"\",VLOOKUP($F53,'Master Data'!$G$2:$L$41,6,FALSE))","v":""}]
[50,null,null,null,null,null,{"$f":"IF(ISNA(VLOOKUP($F54,'Master Data'!$G$2:$L$41,2,FALSE)),\"\",VLOOKUP($F54,'Master Data'!$G$2:$L$41,2,FALSE))","v":""},{"$f":"IF(ISNA(VLOOKUP($F54,'Master Data'!$G$2:$L$41,3,FALSE)),\"\",VLOOKUP($F54,'Master Data'!$G$2:$L$41,3,FALSE))","v":""},{"$f":"IF(ISNA(VLOOKUP($F54,'Master Data'!$G$2:$L$41,4,FALSE)),\"\",VLOOKUP($F54,'Master Data'!$G$2:$L$41,4,FALSE))","v":""},{"$f":"IF(ISNA(VLOOKUP($F54,'Master Data'!$G$2:$L$41,5,FALSE)),\"\",VLOOKUP($F54,'Master Data'!$G$2:$L$41,5,FALSE))","v":""},{"$f":"IF(ISNA(VLOOKUP($F54,'Master Data'!$G$2:$L$41,6,FALSE)),\"\",VLOOKUP($F54,'Master Data'!$G$2:$L$41,6,FALSE))","v":""}]
[51,null,null,null,null,null,{"$f":"IF(ISNA(VLOOKUP($F55,'Master Data'!$G$2:$L$41,2,FALSE)),\"\",VLOOKUP($F55,'Master Data'!$G$2:$L$41,2,FALSE))","v":""},{"$f":"IF(ISNA(VLOOKUP($F55,'Master Data'!$G$2:$L$41,3,FALSE)),\"\",VLOOKUP($F55,'Master Data'!$G$2:$L$41,3,FALSE))","v":""},{"$f":"IF(ISNA(VLOOKUP($F55,'Master Data'!$G$2:$L$41,4,FALSE)),\"\",VLOOKUP($F55,'Master Data'!$G$2:$L$41,4,FALSE))","v":""},{"$f":"IF(ISNA(VLOOKUP($F55,'Master Data'!$G$2:$L$41,5,FALSE)),\"\",VLOOKUP($F55,'Master Data'!$G$2:$L$41,5,FALSE))","v":""},{"$f":"IF(ISNA(VLOOKUP($F55,'Master Data'!$G$2:$L$41,6,FALSE)),\"\",VLOOKUP($F55,'Master Data'!$G$2:$L$41,6,FALSE))","v":""}]
[52,null,null,null,null,null,{"$f":"IF(ISNA(VLOOKUP($F56,'Master Data'!$G$2:$L$41,2,FALSE)),\"\",VLOOKUP($F56,'Master Data'!$G$2:$L$41,2,FALSE))","v":""},{"$f":"IF(ISNA(VLOOKUP($F56,'Master Data'!$G$2:$L$41,3,FALSE)),\"\",VLOOKUP($F56,'Master Data'!$G$2:$L$41,3,FALSE))","v":""},{"$f":"IF(ISNA(VLOOKUP($F56,'Master Data'!$G$2:$L$41,4,FALSE)),\"\",VLOOKUP($F56,'Master Data'!$G$2:$L$41,4,FALSE))","v":""},{"$f":"IF(ISNA(VLOOKUP($F56,'Master Data'!$G$2:$L$41,5,FALSE)),\"\",VLOOKUP($F56,'Master Data'!$G$2:$L$41,5,FALSE))","v":""},{"$f":"IF(ISNA(VLOOKUP($F56,'Master Data'!$G$2:$L$41,6,FALSE)),\"\",VLOOKUP($F56,'Master Data'!$G$2:$L$41,6,FALSE))","v":""}]
[53,null,null,null,null,null,{"$f":"IF(ISNA(VLOOKUP($F57,'Master Data'!$G$2:$L$41,2,FALSE)),\"\",VLOOKUP($F57,'Master Data'!$G$2:$L$41,2,FALSE))","v":""},{"$f":"IF(ISNA(VLOOKUP($F57,'Master Data'!$G$2:$L$41,3,FALSE)),\"\",VLOOKUP($F57,'Master Data'!$G$2:$L$41,3,FALSE))","v":""},{"$f":"IF(ISNA(VLOOKUP($F57,'Master Data'!$G$2:$L$41,4,FALSE)),\"\",VLOOKUP($F57,'Master Data'!$G$2:$L$41,4,FALSE))","v":""},{"$f":"IF(ISNA(VLOOKUP($F57,'Master Data'!$G$2:$L$41,5,FALSE)),\"\",VLOOKUP($F57,'Master Data'!$G$2:$L$41,5,FALSE))","v":""},{"$f":"IF(ISNA(VLOOKUP($F57,'Master Data'!$G$2:$L$41,6,FALSE)),\"\",VLOOKUP($F57,'Master Data'!$G$2:$L$41,6,FALSE))","v":""}]
[54,null,null,null,null,null,{"$f":"IF(ISNA(VLOOKUP($F58,'Master Data'!$G$2:$L$41,2,FALSE)),\"\",VLOOKUP($F58,'Master Data'!$G$2:$L$41,2,FALSE))","v":""},{"$f":"IF(ISNA(VLOOKUP($F58,'Master Data'!$G$2:$L$41,3,FALSE)),\"\",VLOOKUP($F58,'Master Data'!$G$2:$L$41,3,FALSE))","v":""},{"$f":"IF(ISNA(VLOOKUP($F58,'Master Data'!$G$2:$L$41,4,FALSE)),\"\",VLOOKUP($F58,'Master Data'!$G$2:$L$41,4,FALSE))","v":""},{"$f":"IF(ISNA(VLOOKUP($F58,'Master Data'!$G$2:$L$41,5,FALSE)),\"\",VLOOKUP($F58,'Master Data'!$G$2:$L$41,5,FALSE))","v":""},{"$f":"IF(ISNA(VLOOKUP($F58,'Master Data'!$G$2:$L$41,6,FALSE)),\"\",VLOOKUP($F58,'Master Data'!$G$2:$L$41,6,FALSE))","v":""}]
[55,null,null,null,null,null,{"$f":"IF(ISNA(VLOOKUP($F59,'Master Data'!$G$2:$L$41,2,FALSE)),\"\",VLOOKUP($F59,'Master Data'!$G$2:$L$41,2,FALSE))","v":""},{"$f":"IF(ISNA(VLOOKUP($F59,'Master Data'!$G$2:$L$41,3,FALSE)),\"\",VLOOKUP($F59,'Master Data'!$G$2:$L$41,3,FALSE))","v":""},{"$f":"IF(ISNA(VLOOKUP($F59,'Master Data'!$G$2:$L$41,4,FALSE)),\"\",VLOOKUP($F59,'Master Data'!$G$2:$L$41,4,FALSE))","v":""},{"$f":"IF(ISNA(VLOOKUP($F59,'Master Data'!$G$2:$L$41,5,FALSE)),\"\",VLOOKUP($F59,'Master Data'!$G$2:$L$41,5,FALSE))","v":""},{"$f":"IF(ISNA(VLOOKUP($F59,'Master Data'!$G$2:$L$41,6,FALSE)),\"\",VLOOKUP($F59,'Master Data'!$G$2:$L$41,6,FALSE))","v":""}]
[56,null,null,null,null,null,{"$f":"IF(ISNA(VLOOKUP($F60,'Master Data'!$G$2:$L$41,2,FALSE)),\"\",VLOOKUP($F60,'Master Data'!$G$2:$L$41,2,FALSE))","v":""},{"$f":"IF(ISNA(VLOOKUP($F60,'Master Data'!$G$2:$L$41,3,FALSE)),\"\",VLOOKUP($F60,'Master Data'!$G$2:$L$41,3,FALSE))","v":""},{"$f":"IF(ISNA(VLOOKUP($F60,'Master Data'!$G$2:$L$41,4,FALSE)),\"\",VLOOKUP($F60,'Master Data'!$G$2:$L$41,4,FALSE))","v":""},{"$f":"IF(ISNA(VLOOKUP($F60,'Master Data'!$G$2:$L$41,5,FALSE)),\"\",VLOOKUP($F60,'Master Data'!$G$2:$L$41,5,FALSE))","v":""},{"$f":"IF(ISNA(VLOOKUP($F60,'Master Data'!$G$2:$L$41,6,FALSE)),\"\",VLOOKUP($F60,'Master Data'!$G$2:$L$41,6,FALSE))","v":""}]
[57,null,null,null,null,null,{"$f":"IF(ISNA(VLOOKUP($F61,'Master Data'!$G$2:$L$41,2,FALSE)),\"\",VLOOKUP($F61,'Master Data'!$G$2:$L$41,2,FALSE))","v":""},{"$f":"IF(ISNA(VLOOKUP($F61,'Master Data'!$G$2:$L$41,3,FALSE)),\"\",VLOOKUP($F61,'Master Data'!$G$2:$L$41,3,FALSE))","v":""},{"$f":"IF(ISNA(VLOOKUP($F61,'Master Data'!$G$2:$L$41,4,FALSE)),\"\",VLOOKUP($F61,'Master Data'!$G$2:$L$41,4,FALSE))","v":""},{"$f":"IF(ISNA(VLOOKUP($F61,'Master Data'!$G$2:$L$41,5,FALSE)),\"\",VLOOKUP($F61,'Master Data'!$G$2:$L$41,5,FALSE))","v":""},{"$f":"IF(ISNA(VLOOKUP($F61,'Master Data'!$G$2:$L$41,6,FALSE)),\"\",VLOOKUP($F61,'Master Data'!$G$2:$L$41,6,FALSE))","v":""}]
[58,null,null,null,null,null,{"$f":"IF(ISNA(VLOOKUP($F62,'Master Data'!$G$2:$L$41,2,FALSE)),\"\",VLOOKUP($F62,'Master Data'!$G$2:$L$41,2,FALSE))","v":""},{"$f":"IF(ISNA(VLOOKUP($F62,'Master Data'!$G$2:$L$41,3,FALSE)),\"\",VLOOKUP($F62,'Master Data'!$G$2:$L$41,3,FALSE))","v":""},{"$f":"IF(ISNA(VLOOKUP($F62,'Master Data'!$G$2:$L$41,4,FALSE)),\"\",VLOOKUP($F62,'Master Data'!$G$2:$L$41,4,FALSE))","v":""},{"$f":"IF(ISNA(VLOOKUP($F62,'Master Data'!$G$2:$L$41,5,FALSE)),\"\",VLOOKUP($F62,'Master Data'!$G$2:$L$41,5,FALSE))","v":""},{"$f":"IF(ISNA(VLOOKUP($F62,'Master Data'!$G$2:$L$41,6,FALSE)),\"\",VLOOKUP($F62,'Master Data'!$G$2:$L$41,6,FALSE))","v":""}]
[59,null,null,null,null,null,{"$f":"IF(ISNA(VLOOKUP($F63,'Master Data'!$G$2:$L$41,2,FALSE)),\"\",VLOOKUP($F63,'Master Data'!$G$2:$L$41,2,FALSE))","v":""},{"$f":"IF(ISNA(VLOOKUP($F63,'Master Data'!$G$2:$L$41,3,FALSE)),\"\",VLOOKUP($F63,'Master Data'!$G$2:$L$41,3,FALSE))","v":""},{"$f":"IF(ISNA(VLOOKUP($F63,'Master Data'!$G$2:$L$41,4,FALSE)),\"\",VLOOKUP($F63,'Master Data'!$G$2:$L$41,4,FALSE))","v":""},{"$f":"IF(ISNA(VLOOKUP($F63,'Master Data'!$G$2:$L$41,5,FALSE)),\"\",VLOOKUP($F63,'Master Data'!$G$2:$L$41,5,FALSE))","v":""},{"$f":"IF(ISNA(VLOOKUP($F63,'Master Data'!$G$2:$L$41,6,FALSE)),\"\",VLOOKUP($F63,'Master Data'!$G$2:$L$41,6,FALSE))","v":""}]
[60,null,null,null,null,null,{"$f":"IF(ISNA(VLOOKUP($F64,'Master Data'!$G$2:$L$41,2,FALSE)),\"\",VLOOKUP($F64,'Master Data'!$G$2:$L$41,2,FALSE))","v":""},{"$f":"IF(ISNA(VLOOKUP($F64,'Master Data'!$G$2:$L$41,3,FALSE)),\"\",VLOOKUP($F64,'Master Data'!$G$2:$L$41,3,FALSE))","v":""},{"$f":"IF(ISNA(VLOOKUP($F64,'Master Data'!$G$2:$L$41,4,FALSE)),\"\",VLOOKUP($F64,'Master Data'!$G$2:$L$41,4,FALSE))","v":""},{"$f":"IF(ISNA(VLOOKUP($F64,'Master Data'!$G$2:$L$41,5,FALSE)),\"\",VLOOKUP($F64,'Master Data'!$G$2:$L$41,5,FALSE))","v":""},{"$f":"IF(ISNA(VLOOKUP($F64,'Master Data'!$G$2:$L$41,6,FALSE)),\"\",VLOOKUP($F64,'Master Data'!$G$2:$L$41,6,FALSE))","v":""}]
[61,null,null,null,null,null,{"$f":"IF(ISNA(VLOOKUP($F65,'Master Data'!$G$2:$L$41,2,FALSE)),\"\",VLOOKUP($F65,'Master Data'!$G$2:$L$41,2,FALSE))","v":""},{"$f":"IF(ISNA(VLOOKUP($F65,'Master Data'!$G$2:$L$41,3,FALSE)),\"\",VLOOKUP($F65,'Master Data'!$G$2:$L$41,3,FALSE))","v":""},{"$f":"IF(ISNA(VLOOKUP($F65,'Master Data'!$G$2:$L$41,4,FALSE)),\"\",VLOOKUP($F65,'Master Data'!$G$2:$L$41,4,FALSE))","v":""},{"$f":"IF(ISNA(VLOOKUP($F65,'Master Data'!$G$2:$L$41,5,FALSE)),\"\",VLOOKUP($F65,'Master Data'!$G$2:$L$41,5,FALSE))","v":""},{"$f":"IF(ISNA(VLOOKUP($F65,'Master Data'!$G$2:$L$41,6,FALSE)),\"\",VLOOKUP($F65,'Master Data'!$G$2:$L$41,6,FALSE))","v":""}]
[62,null,null,null,null,null,{"$f":"IF(ISNA(VLOOKUP($F66,'Master Data'!$G$2:$L$41,2,FALSE)),\"\",VLOOKUP($F66,'Master Data'!$G$2:$L$41,2,FALSE))","v":""},{"$f":"IF(ISNA(VLOOKUP($F66,'Master Data'!$G$2:$L$41,3,FALSE)),\"\",VLOOKUP($F66,'Master Data'!$G$2:$L$41,3,FALSE))","v":""},{"$f":"IF(ISNA(VLOOKUP($F66,'Master Data'!$G$2:$L$41,4,FALSE)),\"\",VLOOKUP($F66,'Master Data'!$G$2:$L$41,4,FALSE))","v":""},{"$f":"IF(ISNA(VLOOKUP($F66,'Master Data'!$G$2:$L$41,5,FALSE)),\"\",VLOOKUP($F66,'Master Data'!$G$2:$L$41,5,FALSE))","v":""},{"$f":"IF(ISNA(VLOOKUP($F66,'Master Data'!$G$2:$L$41,6,FALSE)),\"\",VLOOKUP($F66,'Master Data'!$G$2:$L$41,6,FALSE))","v":""}]
[63,null,null,null,null,null,{"$f":"IF(ISNA(VLOOKUP($F67,'Master Data'!$G$2:$L$41,2,FALSE)),\"\",VLOOKUP($F67,'Master Data'!$G$2:$L$41,2,FALSE))","v":""},{"$f":"IF(ISNA(VLOOKUP($F67,'Master Data'!$G$2:$L$41,3,FALSE)),\"\",VLOOKUP($F67,'Master Data'!$G$2:$L$41,3,FALSE))","v":""},{"$f":"IF(ISNA(VLOOKUP($F67,'Master Data'!$G$2:$L$41,4,FALSE)),\"\",VLOOKUP($F67,'Master Data'!$G$2:$L$41,4,FALSE))","v":""},{"$f":"IF(ISNA(VLOOKUP($F67,'Master Data'!$G$2:$L$41,5,FALSE)),\"\",VLOOKUP($F67,'Master Data'!$G$2:$L$41,5,FALSE))","v":""},{"$f":"IF(ISNA(VLOOKUP($F67,'Master Data'!$G$2:$L$41,6,FALSE)),\"\",VLOOKUP($F67,'Master Data'!$G$2:$L$41,6,FALSE))","v":""}]
[64,null,null,null,null,null,{"$f":"IF(ISNA(VLOOKUP($F68,'Master Data'!$G$2:$L$41,2,FALSE)),\"\",VLOOKUP($F68,'Master Data'!$G$2:$L$41,2,FALSE))","v":""},{"$f":"IF(ISNA(VLOOKUP($F68,'Master Data'!$G$2:$L$41,3,FALSE)),\"\",VLOOKUP($F68,'Master Data'!$G$2:$L$41,3,FALSE))","v":""},{"$f":"IF(ISNA(VLOOKUP($F68,'Master Data'!$G$2:$L$41,4,FALSE)),\"\",VLOOKUP($F68,'Master Data'!$G$2:$L$41,4,FALSE))","v":""},{"$f":"IF(ISNA(VLOOKUP($F68,'Master Data'!$G$2:$L$41,5,FALSE)),\"\",VLOOKUP($F68,'Master Data'!$G$2:$L$41,5,FALSE))","v":""},{"$f":"IF(ISNA(VLOOKUP($F68,'Master Data'!$G$2:$L$41,6,FALSE)),\"\",VLOOKUP($F68,'Master Data'!$G$2:$L$41,6,FALSE))","v":""}]
[65,null,null,null,null,null,{"$f":"IF(ISNA(VLOOKUP($F69,'Master Data'!$G$2:$L$41,2,FALSE)),\"\",VLOOKUP($F69,'Master Data'!$G$2:$L$41,2,FALSE))","v":""},{"$f":"IF(ISNA(VLOOKUP($F69,'Master Data'!$G$2:$L$41,3,FALSE)),\"\",VLOOKUP($F69,'Master Data'!$G$2:$L$41,3,FALSE))","v":""},{"$f":"IF(ISNA(VLOOKUP($F69,'Master Data'!$G$2:$L$41,4,FALSE)),\"\",VLOOKUP($F69,'Master Data'!$G$2:$L$41,4,FALSE))","v":""},{"$f":"IF(ISNA(VLOOKUP($F69,'Master Data'!$G$2:$L$41,5,FALSE)),\"\",VLOOKUP($F69,'Master Data'!$G$2:$L$41,5,FALSE))","v":""},{"$f":"IF(ISNA(VLOOKUP($F69,'Master Data'!$G$2:$L$41,6,FALSE)),\"\",VLOOKUP($F69,'Master Data'!$G$2:$L$41,6,FALSE))","v":""}]
[66,null,null,null,null,null,{"$f":"IF(ISNA(VLOOKUP($F70,'Master Data'!$G$2:$L$41,2,FALSE)),\"\",VLOOKUP($F70,'Master Data'!$G$2:$L$41,2,FALSE))","v":""},{"$f":"IF(ISNA(VLOOKUP($F70,'Master Data'!$G$2:$L$41,3,FALSE)),\"\",VLOOKUP($F70,'Master Data'!$G$2:$L$41,3,FALSE))","v":""},{"$f":"IF(ISNA(VLOOKUP($F70,'Master Data'!$G$2:$L$41,4,FALSE)),\"\",VLOOKUP($F70,'Master Data'!$G$2:$L$41,4,FALSE))","v":""},{"$f":"IF(ISNA(VLOOKUP($F70,'Master Data'!$G$2:$L$41,5,FALSE)),\"\",VLOOKUP($F70,'Master Data'!$G$2:$L$41,5,FALSE))","v":""},{"$f":"IF(ISNA(VLOOKUP($F70,'Master Data'!$G$2:$L$41,6,FALSE)),\"\",VLOOKUP($F70,'Master Data'!$G$2:$L$41,6,FALSE))","v":""}]
[67,null,null,null,null,null,{"$f":"IF(ISNA(VLOOKUP($F71,'Master Data'!$G$2:$L$41,2,FALSE)),\"\",VLOOKUP($F71,'Master Data'!$G$2:$L$41,2,FALSE))","v":""},{"$f":"IF(ISNA(VLOOKUP($F71,'Master Data'!$G$2:$L$41,3,FALSE)),\"\",VLOOKUP($F71,'Master Data'!$G$2:$L$41,3,FALSE))","v":""},{"$f":"IF(ISNA(VLOOKUP($F71,'Master Data'!$G$2:$L$41,4,FALSE)),\"\",VLOOKUP($F71,'Master Data'!$G$2:$L$41,4,FALSE))","v":""},{"$f":"IF(ISNA(VLOOKUP($F71,'Master Data'!$G$2:$L$41,5,FALSE)),\"\",VLOOKUP($F71,'Master Data'!$G$2:$L$41,5,FALSE))","v":""},{"$f":"IF(ISNA(VLOOKUP($F71,'Master Data'!$G$2:$L$41,6,FALSE)),\"\",VLOOKUP($F71,'Master Data'!$G$2:$L$41,6,FALSE))","v":""}]
[68,null,null,null,null,null,{"$f":"IF(ISNA(VLOOKUP($F72,'Master Data'!$G$2:$L$41,2,FALSE)),\"\",VLOOKUP($F72,'Master Data'!$G$2:$L$41,2,FALSE))","v":""},{"$f":"IF(ISNA(VLOOKUP($F72,'Master Data'!$G$2:$L$41,3,FALSE)),\"\",VLOOKUP($F72,'Master Data'!$G$2:$L$41,3,FALSE))","v":""},{"$f":"IF(ISNA(VLOOKUP($F72,'Master Data'!$G$2:$L$41,4,FALSE)),\"\",VLOOKUP($F72,'Master Data'!$G$2:$L$41,4,FALSE))","v":""},{"$f":"IF(ISNA(VLOOKUP($F72,'Master Data'!$G$2:$L$41,5,FALSE)),\"\",VLOOKUP($F72,'Master Data'!$G$2:$L$41,5,FALSE))","v":""},{"$f":"IF(ISNA(VLOOKUP($F72,'Master Data'!$G$2:$L$41,6,FALSE)),\"\",VLOOKUP($F72,'Master Data'!$G$2:$L$41,6,FALSE))","v":""}]
[69,null,null,null,null,null,{"$f":"IF(ISNA(VLOOKUP($F73,'Master Data'!$G$2:$L$41,2,FALSE)),\"\",VLOOKUP($F73,'Master Data'!$G$2:$L$41,2,FALSE))","v":""},{"$f":"IF(ISNA(VLOOKUP($F73,'Master Data'!$G$2:$L$41,3,FALSE)),\"\",VLOOKUP($F73,'Master Data'!$G$2:$L$41,3,FALSE))","v":""},{"$f":"IF(ISNA(VLOOKUP($F73,'Master Data'!$G$2:$L$41,4,FALSE)),\"\",VLOOKUP($F73,'Master Data'!$G$2:$L$41,4,FALSE))","v":""},{"$f":"IF(ISNA(VLOOKUP($F73,'Master Data'!$G$2:$L$41,5,FALSE)),\"\",VLOOKUP($F73,'Master Data'!$G$2:$L$41,5,FALSE))","v":""},{"$f":"IF(ISNA(VLOOKUP($F73,'Master Data'!$G$2:$L$41,6,FALSE)),\"\",VLOOKUP($F73,'Master Data'!$G$2:$L$41,6,FALSE))","v":""}]
[70,null,null,null,null,null,{"$f":"IF(ISNA(VLOOKUP($F74,'Master Data'!$G$2:$L$41,2,FALSE)),\"\",VLOOKUP($F74,'Master Data'!$G$2:$L$41,2,FALSE))","v":""},{"$f":"IF(ISNA(VLOOKUP($F74,'Master Data'!$G$2:$L$41,3,FALSE)),\"\",VLOOKUP($F74,'Master Data'!$G$2:$L$41,3,FALSE))","v":""},{"$f":"IF(ISNA(VLOOKUP($F74,'Master Data'!$G$2:$L$41,4,FALSE)),\"\",VLOOKUP($F74,'Master Data'!$G$2:$L$41,4,FALSE))","v":""},{"$f":"IF(ISNA(VLOOKUP($F74,'Master Data'!$G$2:$L$41,5,FALSE)),\"\",VLOOKUP($F74,'Master Data'!$G$2:$L$41,5,FALSE))","v":""},{"$f":"IF(ISNA(VLOOKUP($F74,'Master Data'!$G$2:$L$41,6,FALSE)),\"\",VLOOKUP($F74,'Master Data'!$G$2:$L$41,6,FALSE))","v":""}]
[71,null,null,null,null,null,{"$f":"IF(ISNA(VLOOKUP($F75,'Master Data'!$G$2:$L$41,2,FALSE)),\"\",VLOOKUP($F75,'Master Data'!$G$2:$L$41,2,FALSE))","v":""},{"$f":"IF(ISNA(VLOOKUP($F75,'Master Data'!$G$2:$L$41,3,FALSE)),\"\",VLOOKUP($F75,'Master Data'!$G$2:$L$41,3,FALSE))","v":""},{"$f":"IF(ISNA(VLOOKUP($F75,'Master Data'!$G$2:$L$41,4,FALSE)),\"\",VLOOKUP($F75,'Master Data'!$G$2:$L$41,4,FALSE))","v":""},{"$f":"IF(ISNA(VLOOKUP($F75,'Master Data'!$G$2:$L$41,5,FALSE)),\"\",VLOOKUP($F75,'Master Data'!$G$2:$L$41,5,FALSE))","v":""},{"$f":"IF(ISNA(VLOOKUP($F75,'Master Data'!$G$2:$L$41,6,FALSE)),\"\",VLOOKUP($F75,'Master Data'!$G$2:$L$41,6,FALSE))","v":""}]
[72,null,null,null,null,null,{"$f":"IF(ISNA(VLOOKUP($F76,'Master Data'!$G$2:$L$41,2,FALSE)),\"\",VLOOKUP($F76,'Master Data'!$G$2:$L$41,2,FALSE))","v":""},{"$f":"IF(ISNA(VLOOKUP($F76,'Master Data'!$G$2:$L$41,3,FALSE)),\"\",VLOOKUP($F76,'Master Data'!$G$2:$L$41,3,FALSE))","v":""},{"$f":"IF(ISNA(VLOOKUP($F76,'Master Data'!$G$2:$L$41,4,FALSE)),\"\",VLOOKUP($F76,'Master Data'!$G$2:$L$41,4,FALSE))","v":""},{"$f":"IF(ISNA(VLOOKUP($F76,'Master Data'!$G$2:$L$41,5,FALSE)),\"\",VLOOKUP($F76,'Master Data'!$G$2:$L$41,5,FALSE))","v":""},{"$f":"IF(ISNA(VLOOKUP($F76,'Master Data'!$G$2:$L$41,6,FALSE)),\"\",VLOOKUP($F76,'Master Data'!$G$2:$L$41,6,FALSE))","v":""}]
[73,null,null,null,null,null,{"$f":"IF(ISNA(VLOOKUP($F77,'Master Data'!$G$2:$L$41,2,FALSE)),\"\",VLOOKUP($F77,'Master Data'!$G$2:$L$41,2,FALSE))","v":""},{"$f":"IF(ISNA(VLOOKUP($F77,'Master Data'!$G$2:$L$41,3,FALSE)),\"\",VLOOKUP($F77,'Master Data'!$G$2:$L$41,3,FALSE))","v":""},{"$f":"IF(ISNA(VLOOKUP($F77,'Master Data'!$G$2:$L$41,4,FALSE)),\"\",VLOOKUP($F77,'Master Data'!$G$2:$L$41,4,FALSE))","v":""},{"$f":"IF(ISNA(VLOOKUP($F77,'Master Data'!$G$2:$L$41,5,FALSE)),\"\",VLOOKUP($F77,'Master Data'!$G$2:$L$41,5,FALSE))","v":""},{"$f":"IF(ISNA(VLOOKUP($F77,'Master Data'!$G$2:$L$41,6,FALSE)),\"\",VLOOKUP($F77,'Master Data'!$G$2:$L$41,6,FALSE))","v":""}]
[74,null,null,null,null,null,{"$f":"IF(ISNA(VLOOKUP($F78,'Master Data'!$G$2:$L$41,2,FALSE)),\"\",VLOOKUP($F78,'Master Data'!$G$2:$L$41,2,FALSE))","v":""},{"$f":"IF(ISNA(VLOOKUP($F78,'Master Data'!$G$2:$L$41,3,FALSE)),\"\",VLOOKUP($F78,'Master Data'!$G$2:$L$41,3,FALSE))","v":""},{"$f":"IF(ISNA(VLOOKUP($F78,'Master Data'!$G$2:$L$41,4,FALSE)),\"\",VLOOKUP($F78,'Master Data'!$G$2:$L$41,4,FALSE))","v":""},{"$f":"IF(ISNA(VLOOKUP($F78,'Master Data'!$G$2:$L$41,5,FALSE)),\"\",VLOOKUP($F78,'Master Data'!$G$2:$L$41,5,FALSE))","v":""},{"$f":"IF(ISNA(VLOOKUP($F78,'Master Data'!$G$2:$L$41,6,FALSE)),\"\",VLOOKUP($F78,'Master Data'!$G$2:$L$41,6,FALSE))","v":""}]
[75,null,null,null,null,null,{"$f":"IF(ISNA(VLOOKUP($F79,'Master Data'!$G$2:$L$41,2,FALSE)),\"\",VLOOKUP($F79,'Master Data'!$G$2:$L$41,2,FALSE))","v":""},{"$f":"IF(ISNA(VLOOKUP($F79,'Master Data'!$G$2:$L$41,3,FALSE)),\"\",VLOOKUP($F79,'Master Data'!$G$2:$L$41,3,FALSE))","v":""},{"$f":"IF(ISNA(VLOOKUP($F79,'Master Data'!$G$2:$L$41,4,FALSE)),\"\",VLOOKUP($F79,'Master Data'!$G$2:$L$41,4,FALSE))","v":""},{"$f":"IF(ISNA(VLOOKUP($F79,'Master Data'!$G$2:$L$41,5,FALSE)),\"\",VLOOKUP($F79,'Master Data'!$G$2:$L$41,5,FALSE))","v":""},{"$f":"IF(ISNA(VLOOKUP($F79,'Master Data'!$G$2:$L$41,6,FALSE)),\"\",VLOOKUP($F79,'Master Data'!$G$2:$L$41,6,FALSE))","v":""}]
[76,null,null,null,null,null,{"$f":"IF(ISNA(VLOOKUP($F80,'Master Data'!$G$2:$L$41,2,FALSE)),\"\",VLOOKUP($F80,'Master Data'!$G$2:$L$41,2,FALSE))","v":""},{"$f":"IF(ISNA(VLOOKUP($F80,'Master Data'!$G$2:$L$41,3,FALSE)),\"\",VLOOKUP($F80,'Master Data'!$G$2:$L$41,3,FALSE))","v":""},{"$f":"IF(ISNA(VLOOKUP($F80,'Master Data'!$G$2:$L$41,4,FALSE)),\"\",VLOOKUP($F80,'Master Data'!$G$2:$L$41,4,FALSE))","v":""},{"$f":"IF(ISNA(VLOOKUP($F80,'Master Data'!$G$2:$L$41,5,FALSE)),\"\",VLOOKUP($F80,'Master Data'!$G$2:$L$41,5,FALSE))","v":""},{"$f":"IF(ISNA(VLOOKUP($F80,'Master Data'!$G$2:$L$41,6,FALSE)),\"\",VLOOKUP($F80,'Master Data'!$G$2:$L$41,6,FALSE))","v":""}]
[77,null,null,null,null,null,{"$f":"IF(ISNA(VLOOKUP($F81,'Master Data'!$G$2:$L$41,2,FALSE)),\"\",VLOOKUP($F81,'Master Data'!$G$2:$L$41,2,FALSE))","v":""},{"$f":"IF(ISNA(VLOOKUP($F81,'Master Data'!$G$2:$L$41,3,FALSE)),\"\",VLOOKUP($F81,'Master Data'!$G$2:$L$41,3,FALSE))","v":""},{"$f":"IF(ISNA(VLOOKUP($F81,'Master Data'!$G$2:$L$41,4,FALSE)),\"\",VLOOKUP($F81,'Master Data'!$G$2:$L$41,4,FALSE))","v":""},{"$f":"IF(ISNA(VLOOKUP($F81,'Master Data'!$G$2:$L$41,5,FALSE)),\"\",VLOOKUP($F81,'Master Data'!$G$2:$L$41,5,FALSE))","v":""},{"$f":"IF(ISNA(VLOOKUP($F81,'Master Data'!$G$2:$L$41,6,FALSE)),\"\",VLOOKUP($F81,'Master Data'!$G$2:$L$41,6,FALSE))","v":""}]
[78,null,null,null,null,null,{"$f":"IF(ISNA(VLOOKUP($F82,'Master Data'!$G$2:$L$41,2,FALSE)),\"\",VLOOKUP($F82,'Master Data'!$G$2:$L$41,2,FALSE))","v":""},{"$f":"IF(ISNA(VLOOKUP($F82,'Master Data'!$G$2:$L$41,3,FALSE)),\"\",VLOOKUP($F82,'Master Data'!$G$2:$L$41,3,FALSE))","v":""},{"$f":"IF(ISNA(VLOOKUP($F82,'Master Data'!$G$2:$L$41,4,FALSE)),\"\",VLOOKUP($F82,'Master Data'!$G$2:$L$41,4,FALSE))","v":""},{"$f":"IF(ISNA(VLOOKUP($F82,'Master Data'!$G$2:$L$41,5,FALSE)),\"\",VLOOKUP($F82,'Master Data'!$G$2:$L$41,5,FALSE))","v":""},{"$f":"IF(ISNA(VLOOKUP($F82,'Master Data'!$G$2:$L$41,6,FALSE)),\"\",VLOOKUP($F82,'Master Data'!$G$2:$L$41,6,FALSE))","v":""}]
[79,null,null,null,null,null,{"$f":"IF(ISNA(VLOOKUP($F83,'Master Data'!$G$2:$L$41,2,FALSE)),\"\",VLOOKUP($F83,'Master Data'!$G$2:$L$41,2,FALSE))","v":""},{"$f":"IF(ISNA(VLOOKUP($F83,'Master Data'!$G$2:$L$41,3,FALSE)),\"\",VLOOKUP($F83,'Master Data'!$G$2:$L$41,3,FALSE))","v":""},{"$f":"IF(ISNA(VLOOKUP($F83,'Master Data'!$G$2:$L$41,4,FALSE)),\"\",VLOOKUP($F83,'Master Data'!$G$2:$L$41,4,FALSE))","v":""},{"$f":"IF(ISNA(VLOOKUP($F83,'Master Data'!$G$2:$L$41,5,FALSE)),\"\",VLOOKUP($F83,'Master Data'!$G$2:$L$41,5,FALSE))","v":""},{"$f":"IF(ISNA(VLOOKUP($F83,'Master Data'!$G$2:$L$41,6,FALSE)),\"\",VLOOKUP($F83,'Master Data'!$G$2:$L$41,6,FALSE))","v":""}]
[80,null,null,null,null,null,{"$f":"IF(ISNA(VLOOKUP($F84,'Master Data'!$G$2:$L$41,2,FALSE)),\"\",VLOOKUP($F84,'Master Data'!$G$2:$L$41,2,FALSE))","v":""},{"$f":"IF(ISNA(VLOOKUP($F84,'Master Data'!$G$2:$L$41,3,FALSE)),\"\",VLOOKUP($F84,'Master Data'!$G$2:$L$41,3,FALSE))","v":""},{"$f":"IF(ISNA(VLOOKUP($F84,'Master Data'!$G$2:$L$41,4,FALSE)),\"\",VLOOKUP($F84,'Master Data'!$G$2:$L$41,4,FALSE))","v":""},{"$f":"IF(ISNA(VLOOKUP($F84,'Master Data'!$G$2:$L$41,5,FALSE)),\"\",VLOOKUP($F84,'Master Data'!$G$2:$L$41,5,FALSE))","v":""},{"$f":"IF(ISNA(VLOOKUP($F84,'Master Data'!$G$2:$L$41,6,FALSE)),\"\",VLOOKUP($F84,'Master Data'!$G$2:$L$41,6,FALSE))","v":""}]
[81,null,null,null,null,null,{"$f":"IF(ISNA(VLOOKUP($F85,'Master Data'!$G$2:$L$41,2,FALSE)),\"\",VLOOKUP($F85,'Master Data'!$G$2:$L$41,2,FALSE))","v":""},{"$f":"IF(ISNA(VLOOKUP($F85,'Master Data'!$G$2:$L$41,3,FALSE)),\"\",VLOOKUP($F85,'Master Data'!$G$2:$L$41,3,FALSE))","v":""},{"$f":"IF(ISNA(VLOOKUP($F85,'Master Data'!$G$2:$L$41,4,FALSE)),\"\",VLOOKUP($F85,'Master Data'!$G$2:$L$41,4,FALSE))","v":""},{"$f":"IF(ISNA(VLOOKUP($F85,'Master Data'!$G$2:$L$41,5,FALSE)),\"\",VLOOKUP($F85,'Master Data'!$G$2:$L$41,5,FALSE))","v":""},{"$f":"IF(ISNA(VLOOKUP($F85,'Master Data'!$G$2:$L$41,6,FALSE)),\"\",VLOOKUP($F85,'Master Data'!$G$2:$L$41,6,FALSE))","v":""}]
[82,null,null,null,null,null,{"$f":"IF(ISNA(VLOOKUP($F86,'Master Data'!$G$2:$L$41,2,FALSE)),\"\",VLOOKUP($F86,'Master Data'!$G$2:$L$41,2,FALSE))","v":""},{"$f":"IF(ISNA(VLOOKUP($F86,'Master Data'!$G$2:$L$41,3,FALSE)),\"\",VLOOKUP($F86,'Master Data'!$G$2:$L$41,3,FALSE))","v":""},{"$f":"IF(ISNA(VLOOKUP($F86,'Master Data'!$G$2:$L$41,4,FALSE)),\"\",VLOOKUP($F86,'Master Data'!$G$2:$L$41,4,FALSE))","v":""},{"$f":"IF(ISNA(VLOOKUP($F86,'Master Data'!$G$2:$L$41,5,FALSE)),\"\",VLOOKUP($F86,'Master Data'!$G$2:$L$41,5,FALSE))","v":""},{"$f":"IF(ISNA(VLOOKUP($F86,'Master Data'!$G$2:$L$41,6,FALSE)),\"\",VLOOKUP($F86,'Master Data'!$G$2:$L$41,6,FALSE))","v":""}]
[83,null,null,null,null,null,{"$f":"IF(ISNA(VLOOKUP($F87,'Master Data'!$G$2:$L$41,2,FALSE)),\"\",VLOOKUP($F87,'Master Data'!$G$2:$L$41,2,FALSE))","v":""},{"$f":"IF(ISNA(VLOOKUP($F87,'Master Data'!$G$2:$L$41,3,FALSE)),\"\",VLOOKUP($F87,'Master Data'!$G$2:$L$41,3,FALSE))","v":""},{"$f":"IF(ISNA(VLOOKUP($F87,'Master Data'!$G$2:$L$41,4,FALSE)),\"\",VLOOKUP($F87,'Master Data'!$G$2:$L$41,4,FALSE))","v":""},{"$f":"IF(ISNA(VLOOKUP($F87,'Master Data'!$G$2:$L$41,5,FALSE)),\"\",VLOOKUP($F87,'Master Data'!$G$2:$L$41,5,FALSE))","v":""},{"$f":"IF(ISNA(VLOOKUP($F87,'Master Data'!$G$2:$L$41,6,FALSE)),\"\",VLOOKUP($F87,'Master Data'!$G$2:$L$41,6,FALSE))","v":""}]
[84,null,null,null,null,null,{"$f":"IF(ISNA(VLOOKUP($F88,'Master Data'!$G$2:$L$41,2,FALSE)),\"\",VLOOKUP($F88,'Master Data'!$G$2:$L$41,2,FALSE))","v":""},{"$f":"IF(ISNA(VLOOKUP($F88,'Master Data'!$G$2:$L$41,3,FALSE)),\"\",VLOOKUP($F88,'Master Data'!$G$2:$L$41,3,FALSE))","v":""},{"$f":"IF(ISNA(VLOOKUP($F88,'Master Data'!$G$2:$L$41,4,FALSE)),\"\",VLOOKUP($F88,'Master Data'!$G$2:$L$41,4,FALSE))","v":""},{"$f":"IF(ISNA(VLOOKUP($F88,'Master Data'!$G$2:$L$41,5,FALSE)),\"\",VLOOKUP($F88,'Master Data'!$G$2:$L$41,5,FALSE))","v":""},{"$f":"IF(ISNA(VLOOKUP($F88,'Master Data'!$G$2:$L$41,6,FALSE)),\"\",VLOOKUP($F88,'Master Data'!$G$2:$L$41,6,FALSE))","v":""}]
[85,null,null,null,null,null,{"$f":"IF(ISNA(VLOOKUP($F89,'Master Data'!$G$2:$L$41,2,FALSE)),\"\",VLOOKUP($F89,'Master Data'!$G$2:$L$41,2,FALSE))","v":""},{"$f":"IF(ISNA(VLOOKUP($F89,'Master Data'!$G$2:$L$41,3,FALSE)),\"\",VLOOKUP($F89,'Master Data'!$G$2:$L$41,3,FALSE))","v":""},{"$f":"IF(ISNA(VLOOKUP($F89,'Master Data'!$G$2:$L$41,4,FALSE)),\"\",VLOOKUP($F89,'Master Data'!$G$2:$L$41,4,FALSE))","v":""},{"$f":"IF(ISNA(VLOOKUP($F89,'Master Data'!$G$2:$L$41,5,FALSE)),\"\",VLOOKUP($F89,'Master Data'!$G$2:$L$41,5,FALSE))","v":""},{"$f":"IF(ISNA(VLOOKUP($F89,'Master Data'!$G$2:$L$41,6,FALSE)),\"\",VLOOKUP($F89,'Master Data'!$G$2:$L$41,6,FALSE))","v":""}]
[86,null,null,null,null,null,{"$f":"IF(ISNA(VLOOKUP($F90,'Master Data'!$G$2:$L$41,2,FALSE)),\"\",VLOOKUP($F90,'Master Data'!$G$2:$L$41,2,FALSE))","v":""},{"$f":"IF(ISNA(VLOOKUP($F90,'Master Data'!$G$2:$L$41,3,FALSE)),\"\",VLOOKUP($F90,'Master Data'!$G$2:$L$41,3,FALSE))","v":""},{"$f":"IF(ISNA(VLOOKUP($F90,'Master Data'!$G$2:$L$41,4,FALSE)),\"\",VLOOKUP($F90,'Master Data'!$G$2:$L$41,4,FALSE))","v":""},{"$f":"IF(ISNA(VLOOKUP($F90,'Master Data'!$G$2:$L$41,5,FALSE)),\"\",VLOOKUP($F90,'Master Data'!$G$2:$L$41,5,FALSE))","v":""},{"$f":"IF(ISNA(VLOOKUP($F90,'Master Data'!$G$2:$L$41,6,FALSE)),\"\",VLOOKUP($F90,'Master Data'!$G$2:$L$41,6,FALSE))","v":""}]
[87,null,null,null,null,null,{"$f":"IF(ISNA(VLOOKUP($F91,'Master Data'!$G$2:$L$41,2,FALSE)),\"\",VLOOKUP($F91,'Master Data'!$G$2:$L$41,2,FALSE))","v":""},{"$f":"IF(ISNA(VLOOKUP($F91,'Master Data'!$G$2:$L$41,3,FALSE)),\"\",VLOOKUP($F91,'Master Data'!$G$2:$L$41,3,FALSE))","v":""},{"$f":"IF(ISNA(VLOOKUP($F91,'Master Data'!$G$2:$L$41,4,FALSE)),\"\",VLOOKUP($F91,'Master Data'!$G$2:$L$41,4,FALSE))","v":""},{"$f":"IF(ISNA(VLOOKUP($F91,'Master Data'!$G$2:$L$41,5,FALSE)),\"\",VLOOKUP($F91,'Master Data'!$G$2:$L$41,5,FALSE))","v":""},{"$f":"IF(ISNA(VLOOKUP($F91,'Master Data'!$G$2:$L$41,6,FALSE)),\"\",VLOOKUP($F91,'Master Data'!$G$2:$L$41,6,FALSE))","v":""}]
[88,null,null,null,null,null,{"$f":"IF(ISNA(VLOOKUP($F92,'Master Data'!$G$2:$L$41,2,FALSE)),\"\",VLOOKUP($F92,'Master Data'!$G$2:$L$41,2,FALSE))","v":""},{"$f":"IF(ISNA(VLOOKUP($F92,'Master Data'!$G$2:$L$41,3,FALSE)),\"\",VLOOKUP($F92,'Master Data'!$G$2:$L$41,3,FALSE))","v":""},{"$f":"IF(ISNA(VLOOKUP($F92,'Master Data'!$G$2:$L$41,4,FALSE)),\"\",VLOOKUP($F92,'Master Data'!$G$2:$L$41,4,FALSE))","v":""},{"$f":"IF(ISNA(VLOOKUP($F92,'Master Data'!$G$2:$L$41,5,FALSE)),\"\",VLOOKUP($F92,'Master Data'!$G$2:$L$41,5,FALSE))","v":""},{"$f":"IF(ISNA(VLOOKUP($F92,'Master Data'!$G$2:$L$41,6,FALSE)),\"\",VLOOKUP($F92,'Master Data'!$G$2:$L$41,6,FALSE))","v":""}]
[89,null,null,null,null,null,{"$f":"IF(ISNA(VLOOKUP($F93,'Master Data'!$G$2:$L$41,2,FALSE)),\"\",VLOOKUP($F93,'Master Data'!$G$2:$L$41,2,FALSE))","v":""},{"$f":"IF(ISNA(VLOOKUP($F93,'Master Data'!$G$2:$L$41,3,FALSE)),\"\",VLOOKUP($F93,'Master Data'!$G$2:$L$41,3,FALSE))","v":""},{"$f":"IF(ISNA(VLOOKUP($F93,'Master Data'!$G$2:$L$41,4,FALSE)),\"\",VLOOKUP($F93,'Master Data'!$G$2:$L$41,4,FALSE))","v":""},{"$f":"IF(ISNA(VLOOKUP($F93,'Master Data'!$G$2:$L$41,5,FALSE)),\"\",VLOOKUP($F93,'Master Data'!$G$2:$L$41,5,FALSE))","v":""},{"$f":"IF(ISNA(VLOOKUP($F93,'Master Data'!$G$2:$L$41,6,FALSE)),\"\",VLOOKUP($F93,'Master Data'!$G$2:$L$41,6,FALSE))","v":""}]
[90,null,null,null,null,null,{"$f":"IF(ISNA(VLOOKUP($F94,'Master Data'!$G$2:$L$41,2,FALSE)),\"\",VLOOKUP($F94,'Master Data'!$G$2:$L$41,2,FALSE))","v":""},{"$f":"IF(ISNA(VLOOKUP($F94,'Master Data'!$G$2:$L$41,3,FALSE)),\"\",VLOOKUP($F94,'Master Data'!$G$2:$L$41,3,FALSE))","v":""},{"$f":"IF(ISNA(VLOOKUP($F94,'Master Data'!$G$2:$L$41,4,FALSE)),\"\",VLOOKUP($F94,'Master Data'!$G$2:$L$41,4,FALSE))","v":""},{"$f":"IF(ISNA(VLOOKUP($F94,'Master Data'!$G$2:$L$41,5,FALSE)),\"\",VLOOKUP($F94,'Master Data'!$G$2:$L$41,5,FALSE))","v":""},{"$f":"IF(ISNA(VLOOKUP($F94,'Master Data'!$G$2:$L$41,6,FALSE)),\"\",VLOOKUP($F94,'Master Data'!$G$2:$L$41,6,FALSE))","v":""}]
[91,null,null,null,null,null,{"$f":"IF(ISNA(VLOOKUP($F95,'Master Data'!$G$2:$L$41,2,FALSE)),\"\",VLOOKUP($F95,'Master Data'!$G$2:$L$41,2,FALSE))","v":""},{"$f":"IF(ISNA(VLOOKUP($F95,'Master Data'!$G$2:$L$41,3,FALSE)),\"\",VLOOKUP($F95,'Master Data'!$G$2:$L$41,3,FALSE))","v":""},{"$f":"IF(ISNA(VLOOKUP($F95,'Master Data'!$G$2:$L$41,4,FALSE)),\"\",VLOOKUP($F95,'Master Data'!$G$2:$L$41,4,FALSE))","v":""},{"$f":"IF(ISNA(VLOOKUP($F95,'Master Data'!$G$2:$L$41,5,FALSE)),\"\",VLOOKUP($F95,'Master Data'!$G$2:$L$41,5,FALSE))","v":""},{"$f":"IF(ISNA(VLOOKUP($F95,'Master Data'!$G$2:$L$41,6,FALSE)),\"\",VLOOKUP($F95,'Master Data'!$G$2:$L$41,6,FALSE))","v":""}]
[92,null,null,null,null,null,{"$f":"IF(ISNA(VLOOKUP($F96,'Master Data'!$G$2:$L$41,2,FALSE)),\"\",VLOOKUP($F96,'Master Data'!$G$2:$L$41,2,FALSE))","v":""},{"$f":"IF(ISNA(VLOOKUP($F96,'Master Data'!$G$2:$L$41,3,FALSE)),\"\",VLOOKUP($F96,'Master Data'!$G$2:$L$41,3,FALSE))","v":""},{"$f":"IF(ISNA(VLOOKUP($F96,'Master Data'!$G$2:$L$41,4,FALSE)),\"\",VLOOKUP($F96,'Master Data'!$G$2:$L$41,4,FALSE))","v":""},{"$f":"IF(ISNA(VLOOKUP($F96,'Master Data'!$G$2:$L$41,5,FALSE)),\"\",VLOOKUP($F96,'Master Data'!$G$2:$L$41,5,FALSE))","v":""},{"$f":"IF(ISNA(VLOOKUP($F96,'Master Data'!$G$2:$L$41,6,FALSE)),\"\",VLOOKUP($F96,'Master Data'!$G$2:$L$41,6,FALSE))","v":""}]
[93,null,null,null,null,null,{"$f":"IF(ISNA(VLOOKUP($F97,'Master Data'!$G$2:$L$41,2,FALSE)),\"\",VLOOKUP($F97,'Master Data'!$G$2:$L$41,2,FALSE))","v":""},{"$f":"IF(ISNA(VLOOKUP($F97,'Master Data'!$G$2:$L$41,3,FALSE)),\"\",VLOOKUP($F97,'Master Data'!$G$2:$L$41,3,FALSE))","v":""},{"$f":"IF(ISNA(VLOOKUP($F97,'Master Data'!$G$2:$L$41,4,FALSE)),\"\",VLOOKUP($F97,'Master Data'!$G$2:$L$41,4,FALSE))","v":""},{"$f":"IF(ISNA(VLOOKUP($F97,'Master Data'!$G$2:$L$41,5,FALSE)),\"\",VLOOKUP($F97,'Master Data'!$G$2:$L$41,5,FALSE))","v":""},{"$f":"IF(ISNA(VLOOKUP($F97,'Master Data'!$G$2:$L$41,6,FALSE)),\"\",VLOOKUP($F97,'Master Data'!$G$2:$L$41,6,FALSE))","v":""}]
[94,null,null,null,null,null,{"$f":"IF(ISNA(VLOOKUP($F98,'Master Data'!$G$2:$L$41,2,FALSE)),\"\",VLOOKUP($F98,'Master Data'!$G$2:$L$41,2,FALSE))","v":""},{"$f":"IF(ISNA(VLOOKUP($F98,'Master Data'!$G$2:$L$41,3,FALSE)),\"\",VLOOKUP($F98,'Master Data'!$G$2:$L$41,3,FALSE))","v":""},{"$f":"IF(ISNA(VLOOKUP($F98,'Master Data'!$G$2:$L$41,4,FALSE)),\"\",VLOOKUP($F98,'Master Data'!$G$2:$L$41,4,FALSE))","v":""},{"$f":"IF(ISNA(VLOOKUP($F98,'Master Data'!$G$2:$L$41,5,FALSE)),\"\",VLOOKUP($F98,'Master Data'!$G$2:$L$41,5,FALSE))","v":""},{"$f":"IF(ISNA(VLOOKUP($F98,'Master Data'!$G$2:$L$41,6,FALSE)),\"\",VLOOKUP($F98,'Master Data'!$G$2:$L$41,6,FALSE))","v":""}]
[95,null,null,null,null,null,{"$f":"IF(ISNA(VLOOKUP($F99,'Master Data'!$G$2:$L$41,2,FALSE)),\"\",VLOOKUP($F99,'Master Data'!$G$2:$L$41,2,FALSE))","v":""},{"$f":"IF(ISNA(VLOOKUP($F99,'Master Data'!$G$2:$L$41,3,FALSE)),\"\",VLOOKUP($F99,'Master Data'!$G$2:$L$41,3,FALSE))","v":""},{"$f":"IF(ISNA(VLOOKUP($F99,'Master Data'!$G$2:$L$41,4,FALSE)),\"\",VLOOKUP($F99,'Master Data'!$G$2:$L$41,4,FALSE))","v":""},{"$f":"IF(ISNA(VLOOKUP($F99,'Master Data'!$G$2:$L$41,5,FALSE)),\"\",VLOOKUP($F99,'Master Data'!$G$2:$L$41,5,FALSE))","v":""},{"$f":"IF(ISNA(VLOOKUP($F99,'Master Data'!$G$2:$L$41,6,FALSE)),\"\",VLOOKUP($F99,'Master Data'!$G$2:$L$41,6,FALSE))","v":""}]
[96,null,null,null,null,null,{"$f":"IF(ISNA(VLOOKUP($F100,'Master Data'!$G$2:$L$41,2,FALSE)),\"\",VLOOKUP($F100,'Master Data'!$G$2:$L$41,2,FALSE))","v":""},{"$f":"IF(ISNA(VLOOKUP($F100,'Master Data'!$G$2:$L$41,3,FALSE)),\"\",VLOOKUP($F100,'Master Data'!$G$2:$L$41,3,FALSE))","v":""},{"$f":"IF(ISNA(VLOOKUP($F100,'Master Data'!$G$2:$L$41,4,FALSE)),\"\",VLOOKUP($F100,'Master Data'!$G$2:$L$41,4,FALSE))","v":""},{"$f":"IF(ISNA(VLOOKUP($F100,'Master Data'!$G$2:$L$41,5,FALSE)),\"\",VLOOKUP($F100,'Master Data'!$G$2:$L$41,5,FALSE))","v":""},{"$f":"IF(ISNA(VLOOKUP($F100,'Master Data'!$G$2:$L$41,6,FALSE)),\"\",VLOOKUP($F100,'Master Data'!$G$2:$L$41,6,FALSE))","v":""}]
[97,null,null,null,null,null,{"$f":"IF(ISNA(VLOOKUP($F101,'Master Data'!$G$2:$L$41,2,FALSE)),\"\",VLOOKUP($F101,'Master Data'!$G$2:$L$41,2,FALSE))","v":""},{"$f":"IF(ISNA(VLOOKUP($F101,'Master Data'!$G$2:$L$41,3,FALSE)),\"\",VLOOKUP($F101,'Master Data'!$G$2:$L$41,3,FALSE))","v":""},{"$f":"IF(ISNA(VLOOKUP($F101,'Master Data'!$G$2:$L$41,4,FALSE)),\"\",VLOOKUP($F101,'Master Data'!$G$2:$L$41,4,FALSE))","v":""},{"$f":"IF(ISNA(VLOOKUP($F101,'Master Data'!$G$2:$L$41,5,FALSE)),\"\",VLOOKUP($F101,'Master Data'!$G$2:$L$41,5,FALSE))","v":""},{"$f":"IF(ISNA(VLOOKUP($F101,'Master Data'!$G$2:$L$41,6,FALSE)),\"\",VLOOKUP($F101,'Master Data'!$G$2:$L$41,6,FALSE))","v":""}]
[98,null,null,null,null,null,{"$f":"IF(ISNA(VLOOKUP($F102,'Master Data'!$G$2:$L$41,2,FALSE)),\"\",VLOOKUP($F102,'Master Data'!$G$2:$L$41,2,FALSE))","v":""},{"$f":"IF(ISNA(VLOOKUP($F102,'Master Data'!$G$2:$L$41,3,FALSE)),\"\",VLOOKUP($F102,'Master Data'!$G$2:$L$41,3,FALSE))","v":""},{"$f":"IF(ISNA(VLOOKUP($F102,'Master Data'!$G$2:$L$41,4,FALSE)),\"\",VLOOKUP($F102,'Master Data'!$G$2:$L$41,4,FALSE))","v":""},{"$f":"IF(ISNA(VLOOKUP($F102,'Master Data'!$G$2:$L$41,5,FALSE)),\"\",VLOOKUP($F102,'Master Data'!$G$2:$L$41,5,FALSE))","v":""},{"$f":"IF(ISNA(VLOOKUP($F102,'Master Data'!$G$2:$L$41,6,FALSE)),\"\",VLOOKUP($F102,'Master Data'!$G$2:$L$41,6,FALSE))","v":""}]
[99,null,null,null,null,null,{"$f":"IF(ISNA(VLOOKUP($F103,'Master Data'!$G$2:$L$41,2,FALSE)),\"\",VLOOKUP($F103,'Master Data'!$G$2:$L$41,2,FALSE))","v":""},{"$f":"IF(ISNA(VLOOKUP($F103,'Master Data'!$G$2:$L$41,3,FALSE)),\"\",VLOOKUP($F103,'Master Data'!$G$2:$L$41,3,FALSE))","v":""},{"$f":"IF(ISNA(VLOOKUP($F103,'Master Data'!$G$2:$L$41,4,FALSE)),\"\",VLOOKUP($F103,'Master Data'!$G$2:$L$41,4,FALSE))","v":""},{"$f":"IF(ISNA(VLOOKUP($F103,'Master Data'!$G$2:$L$41,5,FALSE)),\"\",VLOOKUP($F103,'Master Data'!$G$2:$L$41,5,FALSE))","v":""},{"$f":"IF(ISNA(VLOOKUP($F103,'Master Data'!$G$2:$L$41,6,FALSE)),\"\",VLOOKUP($F103,'Master Data'!$G$2:$L$41,6,FALSE))","v":""}]
[100,null,null,null,null,null,{"$f":"IF(ISNA(VLOOKUP($F104,'Master Data'!$G$2:$L$41,2,FALSE)),\"\",VLOOKUP($F104,'Master Data'!$G$2:$L$41,2,FALSE))","v":""},{"$f":"IF(ISNA(VLOOKUP($F104,'Master Data'!$G$2:$L$41,3,FALSE)),\"\",VLOOKUP($F104,'Master Data'!$G$2:$L$41,3,FALSE))","v":""},{"$f":"IF(ISNA(VLOOKUP($F104,'Master Data'!$G$2:$L$41,4,FALSE)),\"\",VLOOKUP($F104,'Master Data'!$G$2:$L$41,4,FALSE))","v":""},{"$f":"IF(ISNA(VLOOKUP($F104,'Master Data'!$G$2:$L$41,5,FALSE)),\"\",VLOOKUP($F104,'Master Data'!$G$2:$L$41,5,FALSE))","v":""},{"$f":"IF(ISNA(VLOOKUP($F104,'Master Data'!$G$2:$L$41,6,FALSE)),\"\",VLOOKUP($F104,'Master Data'!$G$2:$L$41,6,FALSE))","v":""}]

{"sheet":"Master Data","index":1,"n_rows":138,"n_cols":32,"rows_kept":138,"cut":false,"hidden":true,"merged":[]}
["Gender",null,"Minimum Age",null,"Occupation",null,"Plan","IP","OP","D","MA","O",null,null,"Plan","IP","OP","D","MA","O",null,"M","F",null,null,null,"BANKKEY","BANKDESC","FACTHOUS01","Status",null,"Political Exposed Persons (PEP)"]
["M",null,{"$f":"NOW()","v":"2022-10-25T09:49:36.790"},null,"E",null,"001-IP400","IP400","-","-","-","-",null,null,"001-IP400","IP400",null,null,null,null,null,"001-IP400","001-IP400",null,null,null,"ABN-BALI  ","ABN AMRO-BALI                 ","30",{"$f":"IF(AB2=AB1,\"SAMA\",\"BEDA\")","v":"BEDA"},null,"Ya"]
["F",45,{"$f":"DATE(YEAR($C$2)-$B$3,MONTH($C$2),DAY($C$2))","v":"1977-10-25"},null,"S",null,"002-IP500","IP500","-","-","-","-",null,null,"002-IP500","IP500",null,null,null,null,null,"002-IP500","002-IP500",null,null,null,"0610306   ","ANZ INDONESIA                 ","AA",{"$f":"IF(AB3=AB2,\"SAMA\",\"BEDA\")","v":"BEDA"},null,"Tidak"]
[null,25,{"$f":"DATE(YEAR($C$2)-$B$4,MONTH($C$2),DAY($C$2))","v":"1997-10-25"},null,"C",null,"003-IP750","IP750","-","-","-","-",null,null,"003-IP750","IP750",null,null,null,null,null,"003-IP750","003-IP750",null,null,null,"0370028   ","ARTHA GRAHA INTERNASIONAL TBK ","AA","BEDA"]
[null,null,null,null,null,null,"004-IP1000","IP1000","-","-","-","-",null,null,"004-IP1000","IP1000",null,null,null,null,null,"004-IP1000","004-IP1000",null,null,null,"9450305   ","BANK AGRIS                    ","AA","BEDA"]
[null,null,null,null,null,null,"005-IP1200","IP1200","-","-","-","-",null,null,"005-IP1200","IP1200",null,null,null,null,null,"005-IP1200","005-IP1200",null,null,null,"4940014   ","BANK AGRONIAGA                ","AA","BEDA"]
[null,null,null,null,null,null,"006-IP400-OP100","IP400","OP100","-","-","-",null,null,"006-IP400-OP100","IP400","OP100",null,null,null,null,"006-IP400-OP100","006-IP400-OP100",null,null,null,"0880055   ","BANK ANTAR DAERAH             ","AA","BEDA"]
[null,null,null,null,null,null,"007-IP500-OP125","IP500","OP125","-","-","-",null,null,"007-IP500-OP125","IP500","OP125",null,null,null,null,"007-IP500-OP125","007-IP500-OP125",null,null,null,"4410010   ","BANK BUKOPIN                  ","AA","BEDA"]
[null,null,null,null,null,null,"008-IP750-OP150","IP750","OP150","-","-","-",null,null,"008-IP750-OP150","IP750","OP150",null,null,null,null,"008-IP750-OP150","008-IP750-OP150",null,null,null,"5210031   ","BANK BUKOPIN SYARIAH          ","AA","BEDA"]
[null,null,null,null,null,null,"009-IP1000-OP200","IP1000","OP200","-","-","-",null,null,"009-IP1000-OP200","IP1000","OP200",null,null,null,null,"009-IP1000-OP200","009-IP1000-OP200",null,null,null,"0760010   ","BANK BUMI ARTA                ","AA","BEDA"]
[null,null,null,null,null,null,"010-IP1200-OP225","IP1200","OP225","-","-","-",null,null,"010-IP1200-OP225","IP1200","OP225",null,null,null,null,"010-IP1200-OP225","010-IP1200-OP225",null,null,null,"0540308   ","BANK CAPITAL INDONESIA        ","AA","BEDA"]
[null,null,null,null,null,null,"011-IP400-D4000","IP400","-","D4000","-","-",null,null,"011-IP400-D4000","IP400",null,"D4000",null,null,null,"011-IP400-D4000","011-IP400-D4000",null,null,null,"0140397   ","BANK CENTRAL ASIA             ","AA","BEDA"]
[null,null,null,null,null,null,"012-IP500-D5000","IP500","-","D5000","-","-",null,null,"012-IP500-D5000","IP500",null,"D5000",null,null,null,"012-IP500-D5000","012-IP500-D5000",null,null,null,"5360017   ","BANK CENTRAL ASIA SYARIAH     ","AA","BEDA"]
[null,null,null,null,null,null,"013-IP750-D6000","IP750","-","D6000","-","-",null,null,"013-IP750-D6000","IP750",null,"D6000",null,null,null,"013-IP750-D6000","013-IP750-D6000",null,null,null,"0229920   ","BANK CIMB NIAGA SYARIAH       ","AA","BEDA"]
[null,null,null,null,null,null,"014-IP1000-D8000","IP1000","-","D8000","-","-",null,null,"014-IP1000-D8000","IP1000",null,"D8000",null,null,null,"014-IP1000-D8000","014-IP1000-D8000",null,null,null,"0220026   ","BANK CIMB NIAGA TBK           ","AA","BEDA"]
[null,null,null,null,null,null,"015-IP1200-D9000","IP1200","-","D9000","-","-",null,null,"015-IP1200-D9000","IP1200",null,"D9000",null,null,null,"015-IP1200-D9000","015-IP1200-D9000",null,null,null,"0110042   ","BANK DANAMON INDONESIA        ","AA","BEDA"]
[null,null,null,null,null,null,"016-IP400-OP100-D4000","IP400","OP100","D4000","-","-",null,null,"016-IP400-OP100-D4000","IP400","OP100","D4000",null,null,null,"016-IP400-OP100-D4000","016-IP400-OP100-D4000",null,null,null,"0119920   ","BANK DANAMON INDONESIA SYARIAH","AA","BEDA"]
[null,null,null,null,null,null,"017-IP500-OP125-D5000","IP500","OP125","D5000","-","-",null,null,"017-IP500-OP125-D5000","IP500","OP125","D5000",null,null,null,"017-IP500-OP125-D5000","017-IP500-OP125-D5000",null,null,null,"5620029   ","BANK FAMA INTERNATIONAL       ","AA","BEDA"]
[null,null,null,null,null,null,"018-IP750-OP150-D6000","IP750","OP150","D6000","-","-",null,null,"018-IP750-OP150-D6000","IP750","OP150","D6000",null,null,null,"018-IP750-OP150-D6000","018-IP750-OP150-D6000",null,null,null,"1610017   ","BANK GANESHA                  ","AA","BEDA"]
[null,null,null,null,null,null,"019-IP1000-OP200-D8000","IP1000","OP200","D8000","-","-",null,null,"019-IP1000-OP200-D8000","IP1000","OP200","D8000",null,null,null,"019-IP1000-OP200-D8000","019-IP1000-OP200-D8000",null,null,null,"4840017   ","BANK HANA                     ","AA","BEDA"]
[null,null,null,null,null,null,"020-IP1200-OP225-D9000","IP1200","OP225","D9000","-","-",null,null,"020-IP1200-OP225-D9000","IP1200","OP225","D9000",null,null,null,"020-IP1200-OP225-D9000","020-IP1200-OP225-D9000",null,null,null,"5670011   ","BANK HARDA INTERNASIONAL      ","AA","BEDA"]
[null,null,null,null,null,null,"021-IP400-M12000","IP400","-","-","M12000","-",null,null,"021-IP400-M12000","IP400",null,null,"M12000",null,null,null,"021-IP400-M12000",null,null,null,"1906000   ","BANK HIMPUNAN SAUDARA         ","AA","BEDA"]
[null,null,null,null,null,null,"022-IP500-M14000","IP500","-","-","M14000","-",null,null,"022-IP500-M14000","IP500",null,null,"M14000",null,null,null,"022-IP500-M14000",null,null,null,"2120027   ","BANK HS 1906                  ","AA","BEDA"]
[null,null,null,null,null,null,"023-IP750-M16000","IP750","-","-","M16000","-",null,null,"023-IP750-M16000","IP750",null,null,"M16000",null,null,null,"023-IP750-M16000",null,null,null,"0010016   ","BANK INDONESIA                ","AA","BEDA"]
[null,null,null,null,null,null,"024-IP1000-M18000","IP1000","-","-","M18000","-",null,null,"024-IP1000-M18000","IP1000",null,null,"M18000",null,null,null,"024-IP1000-M18000",null,null,null,"0160131   ","BANK INTERNASIONAL INDONESIA  ","AA","BEDA"]
[null,null,null,null,null,null,"025-IP1200-M19000","IP1200","-","-","M19000","-",null,null,"025-IP1200-M19000","IP1200",null,null,"M19000",null,null,null,"025-IP1200-M19000",null,null,null,"0169925   ","BANK INTERNASIONAL INDONESIA S","AA","BEDA"]
[null,null,null,null,null,null,"026-IP400-OP100-M12000","IP400","OP100","-","M12000","-",null,null,"026-IP400-OP100-M12000","IP400","OP100",null,"M12000",null,null,null,"026-IP400-OP100-M12000",null,null,null,"0000026   ","BANK LIPPO                    ","AA","BEDA"]
[null,null,null,null,null,null,"027-IP500-OP125-M14000","IP500","OP125","-","M14000","-",null,null,"027-IP500-OP125-M14000","IP500","OP125",null,"M14000",null,null,null,"027-IP500-OP125-M14000",null,null,null,"0080017   ","BANK MANDIRI                  ","AA","BEDA"]
[null,null,null,null,null,null,"028-IP750-OP150-M16000","IP750","OP150","-","M16000","-",null,null,"028-IP750-OP150-M16000","IP750","OP150",null,"M16000",null,null,null,"028-IP750-OP150-M16000",null,null,null,"4510017   ","BANK MANDIRI SYARIAH          ","AA","BEDA"]
[null,null,null,null,null,null,"029-IP1000-OP200-M18000","IP1000","OP200","-","M18000","-",null,null,"029-IP1000-OP200-M18000","IP1000","OP200",null,"M18000",null,null,null,"029-IP1000-OP200-M18000",null,null,null,"0970017   ","BANK MAYAPADA                 ","AA","BEDA"]
[null,null,null,null,null,null,"030-IP1200-OP225-M19000","IP1200","OP225","-","M19000","-",null,null,"030-IP1200-OP225-M19000","IP1200","OP225",null,"M19000",null,null,null,"030-IP1200-OP225-M19000",null,null,null,"IBBKIDJA03","BANK MAYBANK                  ","AA","BEDA"]
[null,null,null,null,null,null,"031-IP400-D4000-M12000","IP400","-","D4000","M12000","-",null,null,"031-IP400-D4000-M12000","IP400",null,"D4000","M12000",null,null,null,"031-IP400-D4000-M12000",null,null,null,"5530012   ","BANK MAYORA INDONESIA         ","AA","BEDA"]
[null,null,null,null,null,null,"032-IP500-D5000-M14000","IP500","-","D5000","M14000","-",null,null,"032-IP500-D5000-M14000","IP500",null,"D5000","M14000",null,null,null,"032-IP500-D5000-M14000",null,null,null,"4260121   ","BANK MEGA                     ","AA","BEDA"]
[null,null,null,null,null,null,"033-IP750-D6000-M16000","IP750","-","D6000","M16000","-",null,null,"033-IP750-D6000-M16000","IP750",null,"D6000","M16000",null,null,null,"033-IP750-D6000-M16000",null,null,null,"5060016   ","BANK MEGA SYARIAH INDONESIA   ","AA","BEDA"]
[null,null,null,null,null,null,"034-IP1000-D8000-M18000","IP1000","-","D8000","M18000","-",null,null,"034-IP1000-D8000-M18000","IP1000",null,"D8000","M18000",null,null,null,"034-IP1000-D8000-M18000",null,null,null,"1470011   ","BANK MUAMALAT INDONESIA       ","AA","BEDA"]
[null,null,null,null,null,null,"035-IP1200-D9000-M19000","IP1200","-","D9000","M19000","-",null,null,"035-IP1200-D9000-M19000","IP1200",null,"D9000","M19000",null,null,null,"035-IP1200-D9000-M19000",null,null,null,"0950011   ","BANK MUTIARA                  ","AA","BEDA"]
[null,null,null,null,null,null,"036-IP400-OP100-D4000-M12000","IP400","OP100","D4000","M12000","-",null,null,"036-IP400-OP100-D4000-M12000","IP400","OP100","D4000","M12000",null,null,null,"036-IP400-OP100-D4000-M12000",null,null,null,"1180259   ","BANK NAGARI                   ","AA","BEDA"]
[null,null,null,null,null,null,"037-IP500-OP125-D5000-M14000","IP500","OP125","D5000","M14000","-",null,null,"037-IP500-OP125-D5000-M14000","IP500","OP125","D5000","M14000",null,null,null,"037-IP500-OP125-D5000-M14000",null,null,null,"0090010   ","BANK NEGARA INDONESIA 1946    ","AA","BEDA"]
[null,null,null,null,null,null,"038-IP750-OP150-D6000-M16000","IP750","OP150","D6000","M16000","-",null,null,"038-IP750-OP150-D6000-M16000","IP750","OP150","D6000","M16000",null,null,null,"038-IP750-OP150-D6000-M16000",null,null,null,"4270027   ","BANK NEGARA INDONESIA BNI SYAR","AA","BEDA"]
[null,null,null,null,null,null,"039-IP1000-OP200-D8000-M18000","IP1000","OP200","D8000","M18000","-",null,null,"039-IP1000-OP200-D8000-M18000","IP1000","OP200","D8000","M18000",null,null,null,"039-IP1000-OP200-D8000-M18000",null,null,null,"BANK BNP  ","BANK NUSANTARA PARAHYANGAN    ","27","BEDA"]
[null,null,null,null,null,null,"040-IP1200-OP225-D9000-M19000","IP1200","OP225","D9000","M19000","-",null,null,"040-IP1200-OP225-D9000-M19000","IP1200","OP225","D9000","M19000",null,null,null,"040-IP1200-OP225-D9000-M19000",null,null,null,"0000688   ","BANK PERKREDITAN RAKYAT(BPR)  ","AA","BEDA"]
[null,null,null,null,null,null,null,null,null,null,null,null,null,null,null,null,null,null,null,null,null,null,null,null,null,null,"0130475   ","BANK PERMATA                  ","AA","BEDA"]
[null,null,null,null,null,null,null,null,null,null,null,null,null,null,null,null,null,null,null,null,null,null,null,null,null,null,"0139926   ","BANK PERMATA SYARIAH          ","AA","BEDA"]
[null,null,null,null,null,null,null,null,null,null,null,null,null,null,null,null,null,null,null,null,null,null,null,null,null,null,"0020307   ","BANK RAKYAT INDONESIA         ","AA","BEDA"]
[null,null,null,null,null,null,null,null,null,null,null,null,null,null,null,null,null,null,null,null,null,null,null,null,null,null,"4220051   ","BANK RAKYAT INDONESIA SYARIAH ","AA","BEDA"]
[null,null,null,null,null,null,null,null,null,null,null,null,null,null,null,null,null,null,null,null,null,null,null,null,null,null,"5640012   ","BANK SINAR HARAPAN BALI       ","AA","BEDA"]
[null,null,null,null,null,null,null,null,null,null,null,null,null,null,null,null,null,null,null,null,null,null,null,null,null,null,"1530016   ","BANK SINARMAS                 ","AA","BEDA"]
[null,null,null,null,null,null,null,null,null,null,null,null,null,null,null,null,null,null,null,null,null,null,null,null,null,null,"1260027   ","BANK SULSELBAR                ","AA","BEDA"]
[null,null,null,null,null,null,null,null,null,null,null,null,null,null,null,null,null,null,null,null,null,null,null,null,null,null,"1269947   ","BANK SULSELBAR SYARIAH        ","AA","BEDA"]
[null,null,null,null,null,null,null,null,null,null,null,null,null,null,null,null,null,null,null,null,null,null,null,null,null,null,"1460047   ","BANK SWADESI                  ","AA","BEDA"]
[null,null,null,null,null,null,null,null,null,null,null,null,null,null,null,null,null,null,null,null,null,null,null,null,null,null,"2000150   ","BANK TABUNGAN NEGARA          ","AA","BEDA"]
[null,null,null,null,null,null,null,null,null,null,null,null,null,null,null,null,null,null,null,null,null,null,null,null,null,null,"2009928   ","BANK TABUNGAN NEGARA SYARIAH  ","AA","BEDA"]
[null,null,null,null,null,null,null,null,null,null,null,null,null,null,null,null,null,null,null,null,null,null,null,null,null,null,"BANK UOB  ","BANK UOB                      ","38","BEDA"]
[null,null,null,null,null,null,null,null,null,null,null,null,null,null,null,null,null,null,null,null,null,null,null,null,null,null,"0570307   ","BNP PARIBAS INDONESIA         ","AA","BEDA"]
[null,null,null,null,null,null,null,null,null,null,null,null,null,null,null,null,null,null,null,null,null,null,null,null,null,null,"1290013   ","BPD BALI                      ","AA","BEDA"]
[null,null,null,null,null,null,null,null,null,null,null,null,null,null,null,null,null,null,null,null,null,null,null,null,null,null,"1330012   ","BPD BENGKULU                  ","AA","BEDA"]
[null,null,null,null,null,null,null,null,null,null,null,null,null,null,null,null,null,null,null,null,null,null,null,null,null,null,"1160017   ","BPD DAERAH ISTIMEWA ACEH      ","AA","BEDA"]
[null,null,null,null,null,null,null,null,null,null,null,null,null,null,null,null,null,null,null,null,null,null,null,null,null,null,"1120015   ","BPD DIY                       ","AA","BEDA"]
[null,null,null,null,null,null,null,null,null,null,null,null,null,null,null,null,null,null,null,null,null,null,null,null,null,null,"1129922   ","BPD DIY SYARIAH               ","AA","BEDA"]
[null,null,null,null,null,null,null,null,null,null,null,null,null,null,null,null,null,null,null,null,null,null,null,null,null,null,"1110012   ","BPD DKI JAKARTA               ","AA","BEDA"]
[null,null,null,null,null,null,null,null,null,null,null,null,null,null,null,null,null,null,null,null,null,null,null,null,null,null,"1119916   ","BPD DKI JAKARTA SYARIAH       ","AA","BEDA"]
[null,null,null,null,null,null,null,null,null,null,null,null,null,null,null,null,null,null,null,null,null,null,null,null,null,null,"1169924   ","BPD ISTIMEWA ACEH SYARIAH     ","AA","BEDA"]
[null,null,null,null,null,null,null,null,null,null,null,null,null,null,null,null,null,null,null,null,null,null,null,null,null,null,"4250018   ","BPD JABAR BANTEN SYARIAH      ","AA","BEDA"]
[null,null,null,null,null,null,null,null,null,null,null,null,null,null,null,null,null,null,null,null,null,null,null,null,null,null,"1100093   ","BPD JABAR DAN BANTEN          ","AA","BEDA"]
[null,null,null,null,null,null,null,null,null,null,null,null,null,null,null,null,null,null,null,null,null,null,null,null,null,null,"1150014   ","BPD JAMBI                     ","AA","BEDA"]
[null,null,null,null,null,null,null,null,null,null,null,null,null,null,null,null,null,null,null,null,null,null,null,null,null,null,"1130348   ","BPD JATENG                    ","AA","BEDA"]
[null,null,null,null,null,null,null,null,null,null,null,null,null,null,null,null,null,null,null,null,null,null,null,null,null,null,"1139925   ","BPD JATENG SYARIAH            ","AA",{"$f":"IF(AB67=AB66,\"SAMA\",\"BEDA\")","v":"BEDA"}]
[null,null,null,null,null,null,null,null,null,null,null,null,null,null,null,null,null,null,null,null,null,null,null,null,null,null,"1140383   ","BPD JATIM                     ","AA","BEDA"]
[null,null,null,null,null,null,null,null,null,null,null,null,null,null,null,null,null,null,null,null,null,null,null,null,null,null,"1149928   ","BPD JATIM SYARIAH             ","AA","BEDA"]
[null,null,null,null,null,null,null,null,null,null,null,null,null,null,null,null,null,null,null,null,null,null,null,null,null,null,"1230015   ","BPD KALIMANTAN BARAT          ","AA","BEDA"]
[null,null,null,null,null,null,null,null,null,null,null,null,null,null,null,null,null,null,null,null,null,null,null,null,null,null,"1239922   ","BPD KALIMANTAN BARAT SYARIAH  ","AA","BEDA"]
[null,null,null,null,null,null,null,null,null,null,null,null,null,null,null,null,null,null,null,null,null,null,null,null,null,null,"1220012   ","BPD KALIMANTAN SELATAN        ","AA","BEDA"]
[null,null,null,null,null,null,null,null,null,null,null,null,null,null,null,null,null,null,null,null,null,null,null,null,null,null,"1229929   ","BPD KALIMANTAN SELATAN SYARIAH","AA","BEDA"]
[null,null,null,null,null,null,null,null,null,null,null,null,null,null,null,null,null,null,null,null,null,null,null,null,null,null,"1250011   ","BPD KALTENG                   ","AA","BEDA"]
[null,null,null,null,null,null,null,null,null,null,null,null,null,null,null,null,null,null,null,null,null,null,null,null,null,null,"1240018   ","BPD KALTIM                    ","AA","BEDA"]
[null,null,null,null,null,null,null,null,null,null,null,null,null,null,null,null,null,null,null,null,null,null,null,null,null,null,"1249925   ","BPD KALTIM SYARIAH            ","AA","BEDA"]
[null,null,null,null,null,null,null,null,null,null,null,null,null,null,null,null,null,null,null,null,null,null,null,null,null,null,"1210051   ","BPD LAMPUNG                   ","AA","BEDA"]
[null,null,null,null,null,null,null,null,null,null,null,null,null,null,null,null,null,null,null,null,null,null,null,null,null,null,"1310016   ","BPD MALUKU                    ","AA","BEDA"]
[null,null,null,null,null,null,null,null,null,null,null,null,null,null,null,null,null,null,null,null,null,null,null,null,null,null,"1280010   ","BPD NTB                       ","AA","BEDA"]
[null,null,null,null,null,null,null,null,null,null,null,null,null,null,null,null,null,null,null,null,null,null,null,null,null,null,"1300013   ","BPD NUSA TENGGARA TIMUR       ","AA","BEDA"]
[null,null,null,null,null,null,null,null,null,null,null,null,null,null,null,null,null,null,null,null,null,null,null,null,null,null,"1320019   ","BPD PAPUA                     ","AA","BEDA"]
[null,null,null,null,null,null,null,null,null,null,null,null,null,null,null,null,null,null,null,null,null,null,null,null,null,null,"1190016   ","BPD RIAU                      ","AA","BEDA"]
[null,null,null,null,null,null,null,null,null,null,null,null,null,null,null,null,null,null,null,null,null,null,null,null,null,null,"1340015   ","BPD SULAWESI TENGAH           ","AA","BEDA"]
[null,null,null,null,null,null,null,null,null,null,null,null,null,null,null,null,null,null,null,null,null,null,null,null,null,null,"1350018   ","BPD SULAWESI TENGGARA         ","AA","BEDA"]
[null,null,null,null,null,null,null,null,null,null,null,null,null,null,null,null,null,null,null,null,null,null,null,null,null,null,"1270017   ","BPD SULUT                     ","AA","BEDA"]
[null,null,null,null,null,null,null,null,null,null,null,null,null,null,null,null,null,null,null,null,null,null,null,null,null,null,"1180013   ","BPD SUMATERA BARAT            ","AA","BEDA"]
[null,null,null,null,null,null,null,null,null,null,null,null,null,null,null,null,null,null,null,null,null,null,null,null,null,null,"1200142   ","BPD SUMSEL DAN BABEL          ","AA","BEDA"]
[null,null,null,null,null,null,null,null,null,null,null,null,null,null,null,null,null,null,null,null,null,null,null,null,null,null,"1209923   ","BPD SUMSEL DAN BABEL SYARIAH  ","AA","BEDA"]
[null,null,null,null,null,null,null,null,null,null,null,null,null,null,null,null,null,null,null,null,null,null,null,null,null,null,"1170010   ","BPD SUMUT                     ","AA","BEDA"]
[null,null,null,null,null,null,null,null,null,null,null,null,null,null,null,null,null,null,null,null,null,null,null,null,null,null,"1179927   ","BPD SUMUT SYARIAH             ","AA","BEDA"]
[null,null,null,null,null,null,null,null,null,null,null,null,null,null,null,null,null,null,null,null,null,null,null,null,null,null,"2130101   ","BTPN                          ","AA","BEDA"]
[null,null,null,null,null,null,null,null,null,null,null,null,null,null,null,null,null,null,null,null,null,null,null,null,null,null,"2139924   ","BTPN SYARIAH                  ","AA","BEDA"]
[null,null,null,null,null,null,null,null,null,null,null,null,null,null,null,null,null,null,null,null,null,null,null,null,null,null,"5590036   ","CENTRATAMA NASIONAL           ","AA","BEDA"]
[null,null,null,null,null,null,null,null,null,null,null,null,null,null,null,null,null,null,null,null,null,null,null,null,null,null,"9490307   ","CHINATRUST INDONESIA          ","AA","BEDA"]
[null,null,null,null,null,null,null,null,null,null,null,null,null,null,null,null,null,null,null,null,null,null,null,null,null,null,"CIMB NIAGA","CIMB NIAGA TBK                ","20","BEDA"]
[null,null,null,null,null,null,null,null,null,null,null,null,null,null,null,null,null,null,null,null,null,null,null,null,null,null,"CITIBANK  ","CITIBANK                      ","10","BEDA"]
[null,null,null,null,null,null,null,null,null,null,null,null,null,null,null,null,null,null,null,null,null,null,null,null,null,null,"9500307   ","COMMONWEALTH BANK             ","AA","BEDA"]
[null,null,null,null,null,null,null,null,null,null,null,null,null,null,null,null,null,null,null,null,null,null,null,null,null,null,"0460307   ","DBS INDONESIA                 ","AA","BEDA"]
[null,null,null,null,null,null,null,null,null,null,null,null,null,null,null,null,null,null,null,null,null,null,null,null,null,null,"0670304   ","DEUTSCHE AG                   ","AA","BEDA"]
[null,null,null,null,null,null,null,null,null,null,null,null,null,null,null,null,null,null,null,null,null,null,null,null,null,null,"FIRNZAJJ  ","FIRST NATIONAL BANK           ","AA","BEDA"]
[null,null,null,null,null,null,null,null,null,null,null,null,null,null,null,null,null,null,null,null,null,null,null,null,null,null,"0410302   ","HSBC                          ","AA","BEDA"]
[null,null,null,null,null,null,null,null,null,null,null,null,null,null,null,null,null,null,null,null,null,null,null,null,null,null,"0419921   ","HSBC SYARIAH                  ","AA","BEDA"]
[null,null,null,null,null,null,null,null,null,null,null,null,null,null,null,null,null,null,null,null,null,null,null,null,null,null,"4850010   ","ICB BUMIPUTERA                ","AA","BEDA"]
[null,null,null,null,null,null,null,null,null,null,null,null,null,null,null,null,null,null,null,null,null,null,null,null,null,null,"1640058   ","ICBC INDONESIA                ","AA","BEDA"]
[null,null,null,null,null,null,null,null,null,null,null,null,null,null,null,null,null,null,null,null,null,null,null,null,null,null,"1570021   ","MASPION INDONESIA             ","AA","BEDA"]
[null,null,null,null,null,null,null,null,null,null,null,null,null,null,null,null,null,null,null,null,null,null,null,null,null,null,"9470302   ","MAYBANK SYARIAH INDONESIA     ","AA","BEDA"]
[null,null,null,null,null,null,null,null,null,null,null,null,null,null,null,null,null,null,null,null,null,null,null,null,null,null,"MEGA BANK ","MEGA BANK                     ","34","BEDA"]
[null,null,null,null,null,null,null,null,null,null,null,null,null,null,null,null,null,null,null,null,null,null,null,null,null,null,"1510049   ","MESTIKA DHARMA                ","AA","BEDA"]
[null,null,null,null,null,null,null,null,null,null,null,null,null,null,null,null,null,null,null,null,null,null,null,null,null,null,"0480303   ","MIZUHO INDONESIA              ","AA","BEDA"]
[null,null,null,null,null,null,null,null,null,null,null,null,null,null,null,null,null,null,null,null,null,null,null,null,null,null,"1013011   ","MNC BANK                      ","AA","BEDA"]
[null,null,null,null,null,null,null,null,null,null,null,null,null,null,null,null,null,null,null,null,null,null,null,null,null,null,"5480010   ","MULTIARTA SENTOSA             ","AA","BEDA"]
[null,null,null,null,null,null,null,null,null,null,null,null,null,null,null,null,null,null,null,null,null,null,null,null,null,null,"5030017   ","NATIONALNOBU                  ","AA","BEDA"]
[null,null,null,null,null,null,null,null,null,null,null,null,null,null,null,null,null,null,null,null,null,null,null,null,null,null,"NEDSZAJJ  ","NETBANK SOUTH AFRICA          ","AA","BEDA"]
[null,null,null,null,null,null,null,null,null,null,null,null,null,null,null,null,null,null,null,null,null,null,null,null,null,null,"0280024   ","OCBC NISP                     ","AA","BEDA"]
[null,null,null,null,null,null,null,null,null,null,null,null,null,null,null,null,null,null,null,null,null,null,null,null,null,null,"0289928   ","OCBC NISP SYARIAH             ","AA","BEDA"]
[null,null,null,null,null,null,null,null,null,null,null,null,null,null,null,null,null,null,null,null,null,null,null,null,null,null,"0190017   ","PAN INDONESIA Tbk.            ","AA","BEDA"]
[null,null,null,null,null,null,null,null,null,null,null,null,null,null,null,null,null,null,null,null,null,null,null,null,null,null,"5170016   ","PANIN SYARIAH                 ","AA","BEDA"]
[null,null,null,null,null,null,null,null,null,null,null,null,null,null,null,null,null,null,null,null,null,null,null,null,null,null,"PERMATA   ","PERMATA-SUDIRMAN              ","30","BEDA"]
[null,null,null,null,null,null,null,null,null,null,null,null,null,null,null,null,null,null,null,null,null,null,null,null,null,null,"0870010   ","PT BANK HSBC INDONESIA        ","AA","BEDA"]
[null,null,null,null,null,null,null,null,null,null,null,null,null,null,null,null,null,null,null,null,null,null,null,null,null,null,"ICBC      ","PT BANK ICBC INDONESIA        ","24","BEDA"]
[null,null,null,null,null,null,null,null,null,null,null,null,null,null,null,null,null,null,null,null,null,null,null,null,null,null,"RABOBANK  ","PT BANK RABOBANK INTERNATONAL ","23","BEDA"]
[null,null,null,null,null,null,null,null,null,null,null,null,null,null,null,null,null,null,null,null,null,null,null,null,null,null,"5580017   ","PUNDI INDONESIA TBK           ","AA","BEDA"]
[null,null,null,null,null,null,null,null,null,null,null,null,null,null,null,null,null,null,null,null,null,null,null,null,null,null,"0000167   ","QATAR NATIONAL BANK           ","AA","BEDA"]
[null,null,null,null,null,null,null,null,null,null,null,null,null,null,null,null,null,null,null,null,null,null,null,null,null,null,"1670015   ","QNB KESAWAN                   ","AA","BEDA"]
[null,null,null,null,null,null,null,null,null,null,null,null,null,null,null,null,null,null,null,null,null,null,null,null,null,null,"0890016   ","RABO INTERNATIONAL INDONESIA  ","AA","BEDA"]
[null,null,null,null,null,null,null,null,null,null,null,null,null,null,null,null,null,null,null,null,null,null,null,null,null,null,"RABOMUIS  ","RABOBANK-ABDUL MUIS           ","29","BEDA"]
[null,null,null,null,null,null,null,null,null,null,null,null,null,null,null,null,null,null,null,null,null,null,null,null,null,null,"5230011   ","SAHABAT SAMPOERNA             ","AA","BEDA"]
[null,null,null,null,null,null,null,null,null,null,null,null,null,null,null,null,null,null,null,null,null,null,null,null,null,null,"4980016   ","SBI INDONESIA                 ","AA","BEDA"]
[null,null,null,null,null,null,null,null,null,null,null,null,null,null,null,null,null,null,null,null,null,null,null,null,null,null,"SICOTHBK  ","SIAMCOMMERCIAL BANK           ","AA","BEDA"]
[null,null,null,null,null,null,null,null,null,null,null,null,null,null,null,null,null,null,null,null,null,null,null,null,null,null,"0500306   ","STANDARD CHARTERED BANK       ","AA","BEDA"]
[null,null,null,null,null,null,null,null,null,null,null,null,null,null,null,null,null,null,null,null,null,null,null,null,null,null,"0450304   ","SUMITOMO MITSUI INDONESIA     ","AA",{"$f":"IF(AB131=AB130,\"SAMA\",\"BEDA\")","v":"BEDA"}]
[null,null,null,null,null,null,null,null,null,null,null,null,null,null,null,null,null,null,null,null,null,null,null,null,null,null,"0520302   ","THE ROYAL BANK OF SCOTLAND N.V","AA","BEDA"]
[null,null,null,null,null,null,null,null,null,null,null,null,null,null,null,null,null,null,null,null,null,null,null,null,null,null,"0230016   ","UOB INDONESIA                 ","AA","BEDA"]
[null,null,null,null,null,null,null,null,null,null,null,null,null,null,null,null,null,null,null,null,null,null,null,null,null,null,"5660018   ","VICTORIA INTERNATIONAL        ","AA","BEDA"]
[null,null,null,null,null,null,null,null,null,null,null,null,null,null,null,null,null,null,null,null,null,null,null,null,null,null,"4050072   ","VICTORIA SYARIAH              ","AA","BEDA"]
[null,null,null,null,null,null,null,null,null,null,null,null,null,null,null,null,null,null,null,null,null,null,null,null,null,null,"0360300   ","WINDU KENTJANA INTERNATIONAL  ","AA","BEDA"]
[null,null,null,null,null,null,null,null,null,null,null,null,null,null,null,null,null,null,null,null,null,null,null,null,null,null,"0680307   ","WOORI INDONESIA               ","AA","BEDA"]
[null,null,null,null,null,null,null,null,null,null,null,null,null,null,null,null,null,null,null,null,null,null,null,null,null,null,"4900012   ","YUDHA BHAKTI                  ","AA","BEDA"]